Workbook

Sheet Factor Data (hidden)
A1: Entry Count | B1: 8
A2: Next Available ID | B2: 13
A4: ID | B4: 1
A5: IsActive | B5: TRUE
A6: NodeID | B6: 1 | C6: 2 | D6: 3
A7: ArcID | B7: 1 | C7: 2
A8: fNodeCopyID
A9: RootNodeID | B9: 1
A10: FactorName | B10: THA_Decision
A11: IsHidden | B11: FALSE
A13: ID | B13: 2
A14: IsActive | B14: TRUE
A15: NodeID | B15: 4 | C15: 5 | D15: 6 | E15: 7 | F15: 8 | G15: 32 | H15: 34 | I15: 35 | J15: 36 | K15: 37
A16: ArcID | B16: 6 | C16: 38 | D16: 39 | E16: 40 | F16: 41 | G16: 47
A17: fNodeCopyID
A18: RootNodeID | B18: 7
A19: FactorName | B19: ACR_Status
A20: IsHidden | B20: FALSE
A22: ID | B22: 7
A23: IsActive | B23: TRUE
A24: NodeID | B24: 19 | C24: 20 | D24: 21 | E24: 48 | F24: 49 | G24: 50 | H24: 51
A25: ArcID
A26: fNodeCopyID
A27: RootNodeID | B27: 19
A28: FactorName | B28: Last_Surg
A29: IsHidden | B29: FALSE
A31: ID | B31: 8
A32: IsActive | B32: TRUE
A33: NodeID | B33: 22 | C33: 23 | D33: 24 | E33: 25
A34: ArcID
A35: fNodeCopyID
A36: RootNodeID | B36: 22
A37: FactorName | B37: Revision_Ct
A38: IsHidden | B38: FALSE
A40: ID | B40: 9
A41: IsActive | B41: TRUE
A42: NodeID | B42: 62
A43: ArcID | B43: 89
A44: fNodeCopyID
A45: RootNodeID | B45: 62
A46: FactorName | B46: Mortality
A47: IsHidden | B47: FALSE
A49: ID | B49: 10
A50: IsActive | B50: TRUE
A51: NodeID | B51: 38 | C51: 41 | D51: 42 | E51: 52
A52: ArcID | B52: 54 | C52: 56 | D52: 59 | E52: 73 | F52: 74 | G52: 75 | H52: 90
A53: fNodeCopyID | B53: 10 | C53: 11 | D53: 12
A54: RootNodeID | B54: 38
A55: FactorName | B55: Aseptic_Fail
A56: IsHidden | B56: FALSE
A58: ID | B58: 11
A59: IsActive | B59: TRUE
A60: NodeID | B60: 58 | C60: 59 | D60: 60 | E60: 61
A61: ArcID | B61: 82 | C61: 83 | D61: 84 | E61: 85 | F61: 86 | G61: 87 | H61: 88
A62: fNodeCopyID | B62: 19 | C62: 20 | D62: 21
A63: RootNodeID | B63: 58
A64: FactorName | B64: Infection_Fail
A65: IsHidden | B65: FALSE
A67: ID | B67: 12
A68: IsActive | B68: TRUE
A69: NodeID | B69: 54 | C69: 55 | D69: 56 | E69: 57
A70: ArcID
A71: fNodeCopyID
A72: RootNodeID | B72: 54
A73: FactorName | B73: Aseptic_Ct
A74: IsHidden | B74: FALSE

Sheet Node Data (hidden)
A1: Entry Count | B1: 37
A2: Next Available ID | B2: 64
A4: ID | B4: 1
A5: nParentFactorID | B5: 1
A6: NodeCopyID
A7: PredecessorArcID
A8: SuccessorArcID | B8: 1 | C8: 2
A9: QualityFactor | B9: 1
A10: CostFactor | B10: 0
A11: IsKeyNode | B11: FALSE
A12: NodeName
A13: Rounded | B13: FALSE
A14: nTriggerID
A16: ID | B16: 2
A17: nParentFactorID | B17: 1
A18: NodeCopyID
A19: PredecessorArcID | B19: 1
A20: SuccessorArcID
A21: QualityFactor | B21: 1
A22: CostFactor | B22: 0
A23: IsKeyNode | B23: FALSE
A24: NodeName | B24: THA
A25: Rounded | B25: TRUE
A26: nTriggerID
A28: ID | B28: 3
A29: nParentFactorID | B29: 1
A30: NodeCopyID
A31: PredecessorArcID | B31: 2
A32: SuccessorArcID
A33: QualityFactor | B33: 1
A34: CostFactor | B34: 0
A35: IsKeyNode | B35: FALSE
A36: NodeName | B36: Consrv Mgmt
A37: Rounded | B37: TRUE
A38: nTriggerID
A40: ID | B40: 4
A41: nParentFactorID | B41: 2
A42: NodeCopyID
A43: PredecessorArcID
A44: SuccessorArcID | B44: 6 | C44: 38
A45: QualityFactor | B45: 1
A46: CostFactor | B46: 0
A47: IsKeyNode | B47: FALSE
A48: NodeName | B48: THR
A49: Rounded | B49: TRUE
A50: nTriggerID
A52: ID | B52: 5
A53: nParentFactorID | B53: 2
A54: NodeCopyID
A55: PredecessorArcID | B55: 39
A56: SuccessorArcID
A57: QualityFactor | B57: qI
A58: CostFactor | B58: 0
A59: IsKeyNode | B59: FALSE
A60: NodeName | B60: ACR I (aseptic)
A61: Rounded | B61: TRUE
A62: nTriggerID
A64: ID | B64: 6
A65: nParentFactorID | B65: 2
A66: NodeCopyID
A67: PredecessorArcID | B67: 40
A68: SuccessorArcID
A69: QualityFactor | B69: qII
A70: CostFactor | B70: 0
A71: IsKeyNode | B71: FALSE
A72: NodeName | B72: ACR II (aseptic)
A73: Rounded | B73: TRUE
A74: nTriggerID
A76: ID | B76: 7
A77: nParentFactorID | B77: 2
A78: NodeCopyID
A79: PredecessorArcID | B79: 41
A80: SuccessorArcID | B80: 47
A81: QualityFactor | B81: qIII
A82: CostFactor | B82: cMed
A83: IsKeyNode | B83: FALSE
A84: NodeName | B84: ACR III (aseptic)
A85: Rounded | B85: TRUE
A86: nTriggerID
A88: ID | B88: 8
A89: nParentFactorID | B89: 2
A90: NodeCopyID
A91: PredecessorArcID | B91: 47
A92: SuccessorArcID
A93: QualityFactor | B93: qIV
A94: CostFactor | B94: cMed+cCustodial
A95: IsKeyNode | B95: FALSE
A96: NodeName | B96: ACR IV (aseptic)
A97: Rounded | B97: TRUE
A98: nTriggerID
A100: ID | B100: 19
A101: nParentFactorID | B101: 7
A102: NodeCopyID
A103: PredecessorArcID
A104: SuccessorArcID
A105: QualityFactor | B105: 1
A106: CostFactor | B106: 0
A107: IsKeyNode | B107: FALSE
A108: NodeName | B108: Initial THA
A109: Rounded | B109: TRUE
A110: nTriggerID
A112: ID | B112: 20
A113: nParentFactorID | B113: 7
A114: NodeCopyID
A115: PredecessorArcID
A116: SuccessorArcID
A117: QualityFactor | B117: 1
A118: CostFactor | B118: 0
A119: IsKeyNode | B119: FALSE
A120: NodeName | B120: Infection Revision 1
A121: Rounded | B121: TRUE
A122: nTriggerID
A124: ID | B124: 21
A125: nParentFactorID | B125: 7
A126: NodeCopyID
A127: PredecessorArcID
A128: SuccessorArcID
A129: QualityFactor | B129: 1
A130: CostFactor | B130: 0
A131: IsKeyNode | B131: FALSE
A132: NodeName | B132: Aseptic Revision 1
A133: Rounded | B133: TRUE
A134: nTriggerID
A136: ID | B136: 22
A137: nParentFactorID | B137: 8
A138: NodeCopyID
A139: PredecessorArcID
A140: SuccessorArcID
A141: QualityFactor | B141: 1
A142: CostFactor | B142: 0
A143: IsKeyNode | B143: FALSE
A144: NodeName | B144: 0
A145: Rounded | B145: TRUE
A146: nTriggerID
A148: ID | B148: 23
A149: nParentFactorID | B149: 8
A150: NodeCopyID
A151: PredecessorArcID
A152: SuccessorArcID
A153: QualityFactor | B153: 1
A154: CostFactor | B154: 0
A155: IsKeyNode | B155: FALSE
A156: NodeName | B156: 3
A157: Rounded | B157: TRUE
A158: nTriggerID
A160: ID | B160: 24
A161: nParentFactorID | B161: 8
A162: NodeCopyID
A163: PredecessorArcID
A164: SuccessorArcID
A165: QualityFactor | B165: 1
A166: CostFactor | B166: 0
A167: IsKeyNode | B167: FALSE
A168: NodeName | B168: 2
A169: Rounded | B169: TRUE
A170: nTriggerID
A172: ID | B172: 25
A173: nParentFactorID | B173: 8
A174: NodeCopyID
A175: PredecessorArcID
A176: SuccessorArcID
A177: QualityFactor | B177: 1
A178: CostFactor | B178: 0
A179: IsKeyNode | B179: FALSE
A180: NodeName | B180: 1
A181: Rounded | B181: TRUE
A182: nTriggerID
A184: ID | B184: 32
A185: nParentFactorID | B185: 2
A186: NodeCopyID
A187: PredecessorArcID | B187: 38
A188: SuccessorArcID | B188: 39 | C188: 40 | D188: 41
A189: QualityFactor | B189: 1
A190: CostFactor | B190: 0
A191: IsKeyNode | B191: FALSE
A192: NodeName | B192: Survive
A193: Rounded | B193: TRUE
A194: nTriggerID
A196: ID | B196: 34
A197: nParentFactorID | B197: 2
A198: NodeCopyID
A199: PredecessorArcID
A200: SuccessorArcID
A201: QualityFactor | B201: qIV
A202: CostFactor | B202: cMed+cCustodial
A203: IsKeyNode | B203: FALSE
A204: NodeName | B204: ACR IV (septic history)
A205: Rounded | B205: TRUE
A206: nTriggerID
A208: ID | B208: 35
A209: nParentFactorID | B209: 2
A210: NodeCopyID
A211: PredecessorArcID
A212: SuccessorArcID
A213: QualityFactor | B213: qIII
A214: CostFactor | B214: cMed
A215: IsKeyNode | B215: FALSE
A216: NodeName | B216: ACR III (septic history)
A217: Rounded | B217: TRUE
A218: nTriggerID
... 209 more rows

Sheet Arc Data (hidden)
A1: Entry Count | B1: 23
A2: Next Available ID | B2: 91
A4: ID | B4: 1
A5: aParentFactorID | B5: 1
A6: Stochastic | B6: FALSE
A7: Orientation | B7: 3.141592741
A8: PredecessorNodeID | B8: 1
A9: SuccessorNodeID | B9: 2
A10: SuccessorNodeCopyID | B10: 0
A11: TriggerID | B11: 1
A12: RateProb | B12: dTHA
A13: QualityToll | B13: 0
A14: CostToll | B14: cHospInit+cPhys+cRehab
A16: ID | B16: 2
A17: aParentFactorID | B17: 1
A18: Stochastic | B18: FALSE
A19: Orientation | B19: 3.141592741
A20: PredecessorNodeID | B20: 1
A21: SuccessorNodeID | B21: 3
A22: SuccessorNodeCopyID | B22: 0
A23: TriggerID
A24: RateProb | B24: 1-dTHA
A25: QualityToll | B25: 0
A26: CostToll | B26: 0
A28: ID | B28: 6
A29: aParentFactorID | B29: 2
A30: Stochastic | B30: FALSE
A31: Orientation | B31: 3.141592741
A32: PredecessorNodeID | B32: 4
A33: SuccessorNodeID | B33: 0
A34: SuccessorNodeCopyID | B34: 0
A35: TriggerID
A36: RateProb | B36: pSurgMort
A37: QualityToll | B37: 0
A38: CostToll | B38: 0
A40: ID | B40: 38
A41: aParentFactorID | B41: 2
A42: Stochastic | B42: FALSE
A43: Orientation | B43: 3.141592741
A44: PredecessorNodeID | B44: 4
A45: SuccessorNodeID | B45: 32
A46: SuccessorNodeCopyID | B46: 0
A47: TriggerID
A48: RateProb | B48: 1-pSurgMort
A49: QualityToll | B49: 0
A50: CostToll | B50: 0
A52: ID | B52: 39
A53: aParentFactorID | B53: 2
A54: Stochastic | B54: FALSE
A55: Orientation | B55: 3.141592741
A56: PredecessorNodeID | B56: 32
A57: SuccessorNodeID | B57: 5
A58: SuccessorNodeCopyID | B58: 0
A59: TriggerID
A60: RateProb | B60: pSuccess
A61: QualityToll | B61: 0
A62: CostToll | B62: 0
A64: ID | B64: 40
A65: aParentFactorID | B65: 2
A66: Stochastic | B66: FALSE
A67: Orientation | B67: 3.141592741
A68: PredecessorNodeID | B68: 32
A69: SuccessorNodeID | B69: 6
A70: SuccessorNodeCopyID | B70: 0
A71: TriggerID
A72: RateProb | B72: pFair
A73: QualityToll | B73: 0
A74: CostToll | B74: 0
A76: ID | B76: 41
A77: aParentFactorID | B77: 2
A78: Stochastic | B78: FALSE
A79: Orientation | B79: 3.141592741
A80: PredecessorNodeID | B80: 32
A81: SuccessorNodeID | B81: 7
A82: SuccessorNodeCopyID | B82: 0
A83: TriggerID
A84: RateProb | B84: pFailure
A85: QualityToll | B85: 0
A86: CostToll | B86: 0
A88: ID | B88: 47
A89: aParentFactorID | B89: 2
A90: Stochastic | B90: TRUE
A91: Orientation | B91: -1.570796371
A92: PredecessorNodeID | B92: 7
A93: SuccessorNodeID | B93: 8
A94: SuccessorNodeCopyID | B94: 0
A95: TriggerID
A96: RateProb | B96: ID 14
A97: QualityToll | B97: 0
A98: CostToll | B98: 0
A100: ID | B100: 54
A101: aParentFactorID | B101: 10
A102: Stochastic | B102: TRUE
A103: Orientation | B103: 3.141592741
A104: PredecessorNodeID | B104: 38
A105: SuccessorNodeID | B105: 41
A106: SuccessorNodeCopyID | B106: 0
A107: TriggerID | B107: 38 | C107: 40 | D107: 44 | E107: 45 | F107: 46
A108: RateProb | B108: ID 15
A109: QualityToll | B109: 0
A110: CostToll | B110: 0
A112: ID | B112: 56
A113: aParentFactorID | B113: 10
A114: Stochastic | B114: FALSE
A115: Orientation | B115: 3.141592741
A116: PredecessorNodeID | B116: 42
A117: SuccessorNodeID | B117: 0
A118: SuccessorNodeCopyID | B118: 0
A119: TriggerID
A120: RateProb | B120: pASurgMort
A121: QualityToll | B121: 0
A122: CostToll | B122: 0
A124: ID | B124: 59
A125: aParentFactorID | B125: 10
A126: Stochastic | B126: FALSE
A127: Orientation | B127: 3.141592741
A128: PredecessorNodeID | B128: 41
A129: SuccessorNodeID | B129: 38
A130: SuccessorNodeCopyID | B130: 12
A131: TriggerID
A132: RateProb | B132: ID 17
A133: QualityToll | B133: 0
A134: CostToll | B134: 0
A136: ID | B136: 73
A137: aParentFactorID | B137: 10
A138: Stochastic | B138: FALSE
A139: Orientation | B139: 3.141592741
A140: PredecessorNodeID | B140: 42
A141: SuccessorNodeID | B141: 52
A142: SuccessorNodeCopyID | B142: 0
A143: TriggerID
A144: RateProb | B144: 1-pASurgMort
A145: QualityToll | B145: 0
A146: CostToll | B146: 0
A148: ID | B148: 74
A149: aParentFactorID | B149: 10
A150: Stochastic | B150: FALSE
A151: Orientation | B151: 3.141592741
A152: PredecessorNodeID | B152: 52
A153: SuccessorNodeID | B153: 38
A154: SuccessorNodeCopyID | B154: 11
A155: TriggerID | B155: 42 | C155: 43
A156: RateProb | B156: ID 19
A157: QualityToll | B157: 0
A158: CostToll | B158: 0
A160: ID | B160: 75
A161: aParentFactorID | B161: 10
A162: Stochastic | B162: FALSE
A163: Orientation | B163: 3.141592741
A164: PredecessorNodeID | B164: 52
A165: SuccessorNodeID | B165: 41
A166: SuccessorNodeCopyID | B166: 10
A167: TriggerID
A168: RateProb | B168: ID 20
A169: QualityToll | B169: 0
A170: CostToll | B170: 0
A172: ID | B172: 82
A173: aParentFactorID | B173: 11
A174: Stochastic | B174: TRUE
A175: Orientation | B175: 3.141592741
A176: PredecessorNodeID | B176: 58
A177: SuccessorNodeID | B177: 59
A178: SuccessorNodeCopyID | B178: 0
A179: TriggerID | B179: 36
A180: RateProb | B180: ID 21
A181: QualityToll | B181: 0
A182: CostToll | B182: 0
A184: ID | B184: 83
A185: aParentFactorID | B185: 11
A186: Stochastic | B186: FALSE
A187: Orientation | B187: 3.141592741
A188: PredecessorNodeID | B188: 59
A189: SuccessorNodeID | B189: 60
A190: SuccessorNodeCopyID | B190: 0
A191: TriggerID | B191: 22 | C191: 23 | D191: 24 | E191: 30 | F191: 31 | G191: 32
A192: RateProb | B192: ID 23
A193: QualityToll | B193: 0
A194: CostToll | B194: cHospRev+cPhys+cRehab
A196: ID | B196: 84
A197: aParentFactorID | B197: 11
A198: Stochastic | B198: FALSE
A199: Orientation | B199: 3.141592741
A200: PredecessorNodeID | B200: 60
A201: SuccessorNodeID | B201: 61
A202: SuccessorNodeCopyID | B202: 0
A203: TriggerID
A204: RateProb | B204: 1-pInfecMort
A205: QualityToll | B205: 0
A206: CostToll | B206: 0
A208: ID | B208: 85
A209: aParentFactorID | B209: 11
A210: Stochastic | B210: FALSE
A211: Orientation | B211: 3.141592741
A212: PredecessorNodeID | B212: 61
A213: SuccessorNodeID | B213: 59
A214: SuccessorNodeCopyID | B214: 19
A215: TriggerID
A216: RateProb | B216: pInfecFail
A217: QualityToll | B217: 0
A218: CostToll | B218: 0
... 55 more rows

Sheet NodeCopy Data (hidden)
A1: Entry Count | B1: 8
A2: Next Available ID | B2: 22
A4: ID | B4: 5
A5: ncParentFactorID | B5: 4
A6: NodeOriginalID | B6: 26
A7: cPredecessorArcID
A9: ID | B9: 6
A10: ncParentFactorID | B10: 4
A11: NodeOriginalID | B11: 26
A12: cPredecessorArcID
A14: ID | B14: 10
A15: ncParentFactorID | B15: 10
A16: NodeOriginalID | B16: 41
A17: cPredecessorArcID | B17: 75
A19: ID | B19: 11
A20: ncParentFactorID | B20: 10
A21: NodeOriginalID | B21: 38
A22: cPredecessorArcID | B22: 74
A24: ID | B24: 12
A25: ncParentFactorID | B25: 10
A26: NodeOriginalID | B26: 38
A27: cPredecessorArcID | B27: 59
A29: ID | B29: 19
A30: ncParentFactorID | B30: 11
A31: NodeOriginalID | B31: 59
A32: cPredecessorArcID | B32: 85
A34: ID | B34: 20
A35: ncParentFactorID | B35: 11
A36: NodeOriginalID | B36: 58
A37: cPredecessorArcID | B37: 86
A39: ID | B39: 21
A40: ncParentFactorID | B40: 11
A41: NodeOriginalID | B41: 58
A42: cPredecessorArcID | B42: 88

Sheet Trigger Data (hidden)
A1: Entry Count | B1: 37
A2: Next Available ID | B2: 56
A4: ID | B4: 1
A5: FactorTriggeredID | B5: 2
A6: OriginNodeID | B6: (any node)
A7: DestinationNodeID | B7: 4
A9: ID | B9: 4
A10: FactorTriggeredID | B10: **Deleted**
A11: OriginNodeID | B11: **Deleted**
A12: DestinationNodeID | B12: **Deleted**
A14: ID | B14: 5
A15: FactorTriggeredID | B15: **Deleted**
A16: OriginNodeID | B16: **Deleted**
A17: DestinationNodeID | B17: **Deleted**
A19: ID | B19: 6
A20: FactorTriggeredID | B20: **Deleted**
A21: OriginNodeID | B21: **Deleted**
A22: DestinationNodeID | B22: **Deleted**
A24: ID | B24: 7
A25: FactorTriggeredID | B25: 8
A26: OriginNodeID | B26: 24
A27: DestinationNodeID | B27: 23
A29: ID | B29: 8
A30: FactorTriggeredID | B30: 8
A31: OriginNodeID | B31: 25
A32: DestinationNodeID | B32: 24
A34: ID | B34: 9
A35: FactorTriggeredID | B35: 8
A36: OriginNodeID | B36: 22
A37: DestinationNodeID | B37: 25
A39: ID | B39: 10
A40: FactorTriggeredID | B40: **Deleted**
A41: OriginNodeID | B41: **Deleted**
A42: DestinationNodeID | B42: **Deleted**
A44: ID | B44: 11
A45: FactorTriggeredID | B45: **Deleted**
A46: OriginNodeID | B46: **Deleted**
A47: DestinationNodeID | B47: **Deleted**
A49: ID | B49: 12
A50: FactorTriggeredID | B50: **Deleted**
A51: OriginNodeID | B51: **Deleted**
A52: DestinationNodeID | B52: **Deleted**
A54: ID | B54: 13
A55: FactorTriggeredID | B55: 8
A56: OriginNodeID | B56: 24
A57: DestinationNodeID | B57: 23
A59: ID | B59: 14
A60: FactorTriggeredID | B60: 8
A61: OriginNodeID | B61: 25
A62: DestinationNodeID | B62: 24
A64: ID | B64: 15
A65: FactorTriggeredID | B65: 8
A66: OriginNodeID | B66: 22
A67: DestinationNodeID | B67: 25
A69: ID | B69: 22
A70: FactorTriggeredID | B70: 8
A71: OriginNodeID | B71: 24
A72: DestinationNodeID | B72: 23
A74: ID | B74: 23
A75: FactorTriggeredID | B75: 8
A76: OriginNodeID | B76: 25
A77: DestinationNodeID | B77: 24
A79: ID | B79: 24
A80: FactorTriggeredID | B80: 8
A81: OriginNodeID | B81: 22
A82: DestinationNodeID | B82: 25
A84: ID | B84: 30
A85: FactorTriggeredID | B85: 7
A86: OriginNodeID | B86: 48
A87: DestinationNodeID | B87: 49
A89: ID | B89: 31
A90: FactorTriggeredID | B90: 7
A91: OriginNodeID | B91: 20
A92: DestinationNodeID | B92: 48
A94: ID | B94: 32
A95: FactorTriggeredID | B95: 7
A96: OriginNodeID | B96: 19
A97: DestinationNodeID | B97: 20
A99: ID | B99: 36
A100: FactorTriggeredID | B100: 2
A101: OriginNodeID | B101: (any node)
A102: DestinationNodeID | B102: 34
A104: ID | B104: 37
A105: FactorTriggeredID | B105: 2
A106: OriginNodeID | B106: (any node)
A107: DestinationNodeID | B107: 35
A109: ID | B109: 38
A110: FactorTriggeredID | B110: 2
A111: OriginNodeID | B111: 5
A112: DestinationNodeID | B112: 7
A114: ID | B114: 40
A115: FactorTriggeredID | B115: 2
A116: OriginNodeID | B116: 6
A117: DestinationNodeID | B117: 7
A119: ID | B119: 42
A120: FactorTriggeredID | B120: 2
A121: OriginNodeID | B121: 7
A122: DestinationNodeID | B122: 6
A124: ID | B124: 43
A125: FactorTriggeredID | B125: 2
A126: OriginNodeID | B126: 34
A127: DestinationNodeID | B127: 35
A129: ID | B129: 44
A130: FactorTriggeredID | B130: 2
A131: OriginNodeID | B131: 37
A132: DestinationNodeID | B132: 34
A134: ID | B134: 45
A135: FactorTriggeredID | B135: 2
A136: OriginNodeID | B136: 36
A137: DestinationNodeID | B137: 34
A139: ID | B139: 46
A140: FactorTriggeredID | B140: 2
A141: OriginNodeID | B141: 35
A142: DestinationNodeID | B142: 34
A144: ID | B144: 47
A145: FactorTriggeredID | B145: 7
A146: OriginNodeID | B146: 50
A147: DestinationNodeID | B147: 51
A149: ID | B149: 48
A150: FactorTriggeredID | B150: 7
A151: OriginNodeID | B151: 21
A152: DestinationNodeID | B152: 50
A154: ID | B154: 49
A155: FactorTriggeredID | B155: 7
A156: OriginNodeID | B156: 19
A157: DestinationNodeID | B157: 21
A159: ID | B159: 50
A160: FactorTriggeredID | B160: 12
A161: OriginNodeID | B161: 56
A162: DestinationNodeID | B162: 55
A164: ID | B164: 51
A165: FactorTriggeredID | B165: 12
A166: OriginNodeID | B166: 57
A167: DestinationNodeID | B167: 56
A169: ID | B169: 52
A170: FactorTriggeredID | B170: 12
A171: OriginNodeID | B171: 54
A172: DestinationNodeID | B172: 57
A174: ID | B174: 53
A175: FactorTriggeredID | B175: 8
A176: OriginNodeID | B176: 24
A177: DestinationNodeID | B177: 23
A179: ID | B179: 54
A180: FactorTriggeredID | B180: 8
A181: OriginNodeID | B181: 25
A182: DestinationNodeID | B182: 24
A184: ID | B184: 55
A185: FactorTriggeredID | B185: 8
A186: OriginNodeID | B186: 22
A187: DestinationNodeID | B187: 25

Sheet _Lookup (hidden)
A1: Next Available Dive Index | B1: 62
A2: Begin Table | B2: 5
A3: End Table | B3: 67
A5: Lexicographic Node Index | B5: Dive Index
A6: 337 | B6: 1
A7: 1233 | B7: 35
A8: 1345 | B8: 37
A9: 1392 | B9: 39
A10: 1435 | B10: 42
A11: 1446 | B11: 45
A12: 1457 | B12: 38
A13: 1558 | B13: 48
A14: 1838 | B14: 61
A15: 1882 | B15: 54
A16: 1894 | B16: 49
A17: 1950 | B17: 58
A18: 1951 | B18: 55
A19: 1994 | B19: 51
A20: 2512 | B20: 28
A21: 2555 | B21: 30
A22: 2566 | B22: 32
A23: 2577 | B23: 2
A24: 2678 | B24: 34
A25: 2689 | B25: 4
A26: 2736 | B26: 6
A27: 2779 | B27: 9
A28: 2790 | B28: 12
A29: 2958 | B29: 27
A30: 3002 | B30: 20
A31: 3014 | B31: 15
A32: 3070 | B32: 24
A33: 3071 | B33: 21
A34: 3114 | B34: 17
A35: 5198 | B35: 60
A36: 5199 | B36: 57
A37: 5200 | B37: 41
A38: 5242 | B38: 53
A39: 5243 | B39: 44
A40: 5254 | B40: 47
A41: 6318 | B41: 26
A42: 6319 | B42: 23
A43: 6320 | B43: 8
A44: 6362 | B44: 19
A45: 6363 | B45: 11
A46: 6374 | B46: 14
A47: 14897 | B47: 36
A48: 14944 | B48: 40
A49: 14987 | B49: 43
A50: 14998 | B50: 46
A51: 15278 | B51: 59
A52: 15279 | B52: 56
A53: 15322 | B53: 52
A54: 15334 | B54: 50
A55: 16017 | B55: 3
A56: 16064 | B56: 29
A57: 16107 | B57: 31
A58: 16118 | B58: 33
A59: 16129 | B59: 5
A60: 16176 | B60: 7
A61: 16219 | B61: 10
A62: 16230 | B62: 13
A63: 16398 | B63: 25
A64: 16399 | B64: 22
A65: 16442 | B65: 18
A66: 16454 | B66: 16

Sheet _Cohort
A2: Cycle Time = | B2: 0.1
A3: Start Time = | B3: 0
A4: Time Horizon = | B4: 20
A5: Discount Rate = | B5: =_DiscountRate -> 0.03
D6: Aseptic_Fail: | E6: Daily Living | F6: Daily Living | G6: Daily Living | H6: Daily Living | I6: Daily Living | J6: Daily Living | K6: Daily Living | L6: Daily Living | M6: Daily Living | N6: Daily Living | O6: Daily Living | P6: Daily Living | Q6: Daily Living | R6: Daily Living | S6: Daily Living | T6: Daily Living | U6: Daily Living | V6: Daily Living | W6: Daily Living | X6: Daily Living | Y6: Daily Living | Z6: Daily Living | AA6: Daily Living | AB6: Daily Living | AC6: Daily Living | AD6: Daily Living | AE6: Daily Living | AF6: Daily Living | AG6: Daily Living | AH6: Terminal Node
D7: Infection_Fail: | E7: Daily Living | F7: Daily Living | G7: Daily Living | H7: Daily Living | I7: Daily Living | J7: Daily Living | K7: Daily Living | L7: Daily Living | M7: Daily Living | N7: Daily Living | O7: Daily Living | P7: Daily Living | Q7: Daily Living | R7: Daily Living | S7: Daily Living | T7: Daily Living | U7: Daily Living | V7: Daily Living | W7: Daily Living | X7: Daily Living | Y7: Daily Living | Z7: Daily Living | AA7: Daily Living | AB7: Daily Living | AC7: Daily Living | AD7: Daily Living | AE7: Daily Living | AF7: Daily Living | AG7: Daily Living
D8: THA_Decision: | E8: (no name) | F8: THA | G8: THA | H8: THA | I8: THA | J8: THA | K8: THA | L8: THA | M8: THA | N8: THA | O8: THA | P8: THA | Q8: THA | R8: THA | S8: Consrv Mgmt | T8: Consrv Mgmt | U8: Consrv Mgmt | V8: Consrv Mgmt | W8: Consrv Mgmt | X8: Consrv Mgmt | Y8: Consrv Mgmt | Z8: Consrv Mgmt | AA8: Consrv Mgmt | AB8: Consrv Mgmt | AC8: Consrv Mgmt | AD8: Consrv Mgmt | AE8: Consrv Mgmt | AF8: Consrv Mgmt | AG8: Consrv Mgmt
D9: ACR_Status: | E9: ACR III (aseptic) | F9: ACR I (aseptic) | G9: ACR II (aseptic) | H9: ACR II (aseptic) | I9: ACR II (aseptic) | J9: ACR II (aseptic) | K9: ACR III (aseptic) | L9: ACR III (aseptic) | M9: ACR IV (septic history) | N9: ACR IV (septic history) | O9: ACR IV (septic history) | P9: ACR III (septic history) | Q9: ACR III (septic history) | R9: ACR III (septic history) | S9: ACR II (aseptic) | T9: ACR II (aseptic) | U9: ACR II (aseptic) | V9: ACR III (aseptic) | W9: ACR III (aseptic) | X9: ACR IV (aseptic) | Y9: ACR IV (aseptic) | Z9: ACR IV (aseptic) | AA9: ACR IV (aseptic) | AB9: ACR IV (septic history) | AC9: ACR IV (septic history) | AD9: ACR IV (septic history) | AE9: ACR III (septic history) | AF9: ACR III (septic history) | AG9: ACR III (septic history)
D10: Mortality: | E10: Alive | F10: Alive | G10: Alive | H10: Alive | I10: Alive | J10: Alive | K10: Alive | L10: Alive | M10: Alive | N10: Alive | O10: Alive | P10: Alive | Q10: Alive | R10: Alive | S10: Alive | T10: Alive | U10: Alive | V10: Alive | W10: Alive | X10: Alive | Y10: Alive | Z10: Alive | AA10: Alive | AB10: Alive | AC10: Alive | AD10: Alive | AE10: Alive | AF10: Alive | AG10: Alive
D11: Last_Surg: | E11: Initial THA | F11: Initial THA | G11: Initial THA | H11: Aseptic Revision 1 | I11: Aseptic Revision 2 | J11: Aseptic Revision 3 | K11: Initial THA | L11: Aseptic Revision 3 | M11: Aseptic Revision 1 | N11: Aseptic Revision 2 | O11: Aseptic Revision 3 | P11: Aseptic Revision 1 | Q11: Aseptic Revision 1 | R11: Aseptic Revision 2 | S11: Aseptic Revision 1 | T11: Aseptic Revision 2 | U11: Aseptic Revision 3 | V11: Initial THA | W11: Aseptic Revision 3 | X11: Initial THA | Y11: Aseptic Revision 1 | Z11: Aseptic Revision 2 | AA11: Aseptic Revision 3 | AB11: Aseptic Revision 1 | AC11: Aseptic Revision 2 | AD11: Aseptic Revision 3 | AE11: Aseptic Revision 1 | AF11: Aseptic Revision 1 | AG11: Aseptic Revision 2
D12: Aseptic_Ct: | E12: 0 | F12: 0 | G12: 0 | H12: 1 | I12: 2 | J12: 3 | K12: 0 | L12: 3 | M12: 1 | N12: 2 | O12: 3 | P12: 1 | Q12: 1 | R12: 2 | S12: 1 | T12: 2 | U12: 3 | V12: 0 | W12: 3 | X12: 0 | Y12: 1 | Z12: 2 | AA12: 3 | AB12: 1 | AC12: 2 | AD12: 3 | AE12: 1 | AF12: 1 | AG12: 2
D13: Revision_Ct: | E13: 0 | F13: 0 | G13: 0 | H13: 1 | I13: 2 | J13: 3 | K13: 0 | L13: 3 | M13: 3 | N13: 3 | O13: 3 | P13: 3 | Q13: 2 | R13: 3 | S13: 1 | T13: 2 | U13: 3 | V13: 0 | W13: 3 | X13: 0 | Y13: 1 | Z13: 2 | AA13: 3 | AB13: 3 | AC13: 3 | AD13: 3 | AE13: 3 | AF13: 2 | AG13: 3
D14: Chance/Decision? | E14: 1 | F14: 0 | G14: 0 | H14: 0 | I14: 0 | J14: 0 | K14: 0 | L14: 0 | M14: 0 | N14: 0 | O14: 0 | P14: 0 | Q14: 0 | R14: 0 | S14: 0 | T14: 0 | U14: 0 | V14: 0 | W14: 0 | X14: 0 | Y14: 0 | Z14: 0 | AA14: 0 | AB14: 0 | AC14: 0 | AD14: 0 | AE14: 0 | AF14: 0 | AG14: 0
D16: Initial Cohort = | E16: 1
D18: Time | E18: Counts
D19: =IF(_R,_tI,IF(_t>_tF,_tNw,D52)) -> 0.5 | E19: =IF(_R,E16,IF(_tNw>=_tF,E19,E52)) -> 0 | F19: =IF(_R,F16,IF(_tNw>=_tF,F19,F52)) -> 0.6864526464 | G19: =IF(_R,G16,IF(_tNw>=_tF,G19,G52)) -> 0.1987502094 | H19: =IF(_R,H16,IF(_tNw>=_tF,H19,H52)) -> 0.003273815174 | I19: =IF(_R,I16,IF(_tNw>=_tF,I19,I52)) -> 0.0008750233943 | J19: =IF(_R,J16,IF(_tNw>=_tF,J19,J52)) -> 0.0004109456316 | K19: =IF(_R,K16,IF(_tNw>=_tF,K19,K52)) -> 0.04892312847 | L19: =IF(_R,L16,IF(_tNw>=_tF,L19,L52)) -> 7.807932098e-05 | M19: =IF(_R,M16,IF(_tNw>=_tF,M19,M52)) -> 6.146774109e-07 | N19: =IF(_R,N16,IF(_tNw>=_tF,N19,N52)) -> 1.365206576e-06 | O19: =IF(_R,O16,IF(_tNw>=_tF,O19,O52)) -> 4.878966674e-06 | P19: =IF(_R,P16,IF(_tNw>=_tF,P19,P52)) -> 2.173873208e-06 | Q19: =IF(_R,Q16,IF(_tNw>=_tF,Q19,Q52)) -> 1.020116809e-05 | R19: =IF(_R,R16,IF(_tNw>=_tF,R19,R52)) -> 4.748420438e-06 | S19: =IF(_R,S16,IF(_tNw>=_tF,S19,S52)) -> 0 | T19: =IF(_R,T16,IF(_tNw>=_tF,T19,T52)) -> 0 | U19: =IF(_R,U16,IF(_tNw>=_tF,U19,U52)) -> 0 | V19: =IF(_R,V16,IF(_tNw>=_tF,V19,V52)) -> 0 | W19: =IF(_R,W16,IF(_tNw>=_tF,W19,W52)) -> 0 | X19: =IF(_R,X16,IF(_tNw>=_tF,X19,X52)) -> 0 | Y19: =IF(_R,Y16,IF(_tNw>=_tF,Y19,Y52)) -> 0 | Z19: =IF(_R,Z16,IF(_tNw>=_tF,Z19,Z52)) -> 0 | AA19: =IF(_R,AA16,IF(_tNw>=_tF,AA19,AA52)) -> 0 | AB19: =IF(_R,AB16,IF(_tNw>=_tF,AB19,AB52)) -> 0 | AC19: =IF(_R,AC16,IF(_tNw>=_tF,AC19,AC52)) -> 0 | AD19: =IF(_R,AD16,IF(_tNw>=_tF,AD19,AD52)) -> 0 | AE19: =IF(_R,AE16,IF(_tNw>=_tF,AE19,AE52)) -> 0 | AF19: =IF(_R,AF16,IF(_tNw>=_tF,AF19,AF52)) -> 0 | AG19: =IF(_R,AG16,IF(_tNw>=_tF,AG19,AG52)) -> 0 | AH19: =IF(_R,AH16,IF(_tNw>=_tF,AH19,AH52)) -> 0.06121216992 | AI19: =(SUMPRODUCT(E14:AI14,E19:AI19) > 0) -> FALSE
C20: Transition Counts: | D20: Daily Living / Daily Living / (no name) / ACR III (aseptic) / Alive / Initial THA / 0 / 0
D21: Daily Living / Daily Living / THA / ACR I (aseptic) / Alive / Initial THA / 0 / 0 | E21: =dTHA*(1-pSurgMort)*pSuccess -> 0.7348608838
D22: Daily Living / Daily Living / THA / ACR II (aseptic) / Alive / Initial THA / 0 / 0 | E22: =dTHA*(1-pSurgMort)*pFair -> 0.2127659574
D23: Daily Living / Daily Living / THA / ACR II (aseptic) / Alive / Aseptic Revision 1 / 1 / 1 | F23: =[1]!xPr(rAsepFail InitialTHA*_dT)*(1-pASurgMort)*pAsepFair Rev1_ -> 0.0006984799701 | G23: =[1]!xPr(rAsepFail InitialTHA*_dT)*(1-pASurgMort)*pAsepFair Rev1_ -> 0.0006984799701 | K23: =[1]!xPr(rAsepFail InitialTHA*_dT)*(1-pASurgMort)*pAsepFair Rev1_ -> 0.0006984799701
D24: Daily Living / Daily Living / THA / ACR II (aseptic) / Alive / Aseptic Revision 2 / 2 / 2 | F24: =[1]!xPr(rAsepFail InitialTHA*_dT)*(1-pASurgMort)*pAsepFail Rev1_*(1-pASurgMort)*pAsepFair Rev2_ -> 0.0001840261895 | G24: =[1]!xPr(rAsepFail InitialTHA*_dT)*(1-pASurgMort)*pAsepFail Rev1_*(1-pASurgMort)*pAsepFair Rev2_ -> 0.0001840261895 | H24: =[1]!xPr(rAsepFail AsepRev1*_dT)*(1-pASurgMort)*pAsepFair Rev2_ -> 0.00254175754 | K24: =[1]!xPr(rAsepFail InitialTHA*_dT)*(1-pASurgMort)*pAsepFail Rev1_*(1-pASurgMort)*pAsepFair Rev2_ -> 0.0001840261895
D25: Daily Living / Daily Living / THA / ACR II (aseptic) / Alive / Aseptic Revision 3 / 3 / 3 | F25: =[1]!xPr(rAsepFail InitialTHA*_dT)*(1-pASurgMort)*pAsepFail Rev1_*(1-pASurgMort)*pAsepFail Rev2_*(1-pASurgMort)*pAsepFair Rev3_ -> 8.598283752e-05 | G25: =[1]!xPr(rAsepFail InitialTHA*_dT)*(1-pASurgMort)*pAsepFail Rev1_*(1-pASurgMort)*pAsepFail Rev2_*(1-pASurgMort)*pAsepFair Rev3_ -> 8.598283752e-05 | H25: =[1]!xPr(rAsepFail AsepRev1*_dT)*(1-pASurgMort)*pAsepFail Rev2_*(1-pASurgMort)*pAsepFair Rev3_ -> 0.001187589257 | I25: =[1]!xPr(rAsepFail AsepRev2*_dT)*(1-pASurgMort)*pAsepFair Rev3_ -> 0.004223717621 | K25: =[1]!xPr(rAsepFail InitialTHA*_dT)*(1-pASurgMort)*pAsepFail Rev1_*(1-pASurgMort)*pAsepFail Rev2_*(1-pASurgMort)*pAsepFair Rev3_ -> 8.598283752e-05
D26: Daily Living / Daily Living / THA / ACR III (aseptic) / Alive / Initial THA / 0 / 0 | E26: =dTHA*(1-pSurgMort)*pFailure -> 0.05237315876
D27: Daily Living / Daily Living / THA / ACR III (aseptic) / Alive / Aseptic Revision 3 / 3 / 3 | F27: =[1]!xPr(rAsepFail InitialTHA*_dT)*(1-pASurgMort)*pAsepFail Rev1_*(1-pASurgMort)*pAsepFail Rev2_*(1-pASurgMort)*pAsepFail Rev3_ -> 1.433047292e-05 | G27: =[1]!xPr(rAsepFail InitialTHA*_dT)*(1-pASurgMort)*pAsepFail Rev1_*(1-pASurgMort)*pAsepFail Rev2_*(1-pASurgMort)*pAsepFail Rev3_ -> 1.433047292e-05 | H27: =[1]!xPr(rAsepFail AsepRev1*_dT)*(1-pASurgMort)*pAsepFail Rev2_*(1-pASurgMort)*pAsepFail Rev3_ -> 0.0001979315428 | I27: =[1]!xPr(rAsepFail AsepRev2*_dT)*(1-pASurgMort)*pAsepFail Rev3_ -> 0.0007039529368 | J27: =[1]!xPr(rAsepFail AsepRev3*_dT) -> 0.009950166251 | K27: =[1]!xPr(rAsepFail InitialTHA*_dT)*(1-pASurgMort)*pAsepFail Rev1_*(1-pASurgMort)*pAsepFail Rev2_*(1-pASurgMort)*pAsepFail Rev3_ -> 1.433047292e-05 | L27: =[1]!xPr(rAsepFail AsepRev3*_dT) -> 0.009950166251
D28: Daily Living / Daily Living / THA / ACR IV (septic history) / Alive / Aseptic Revision 1 / 1 / 3 | H28: =[1]!xPr(rInfecFail AsepRev1*_dT)*(1-pInfecMort)*pInfecFail*(1-pInfecMort)*pInfecFail -> 8.940760401e-05 | M28: =[1]!xPr(rAsepFail AsepRev1*_dT)+[1]!xPr(rInfecFail AsepRev1*_dT) -> 0.005990011989 | P28: =[1]!xPr(rAsepFail AsepRev1*_dT)+[1]!xPr(rInfecFail AsepRev1*_dT) -> 0.005990011989 | Q28: =[1]!xPr(rInfecFail AsepRev1*_dT)*(1-pInfecMort)*pInfecFail -> 0.0004226541281
D29: Daily Living / Daily Living / THA / ACR IV (septic history) / Alive / Aseptic Revision 2 / 2 / 3 | I29: =[1]!xPr(rInfecFail AsepRev2*_dT)*(1-pInfecMort)*pInfecFail -> 0.0007390904526 | N29: =[1]!xPr(rAsepFail AsepRev2*_dT)+[1]!xPr(rInfecFail AsepRev2*_dT) -> 0.008481402947 | Q29: =[1]!xPr(rAsepFail AsepRev1*_dT)*(1-pASurgMort)*pAsepFail Rev2_ -> 0.001402348988 | R29: =[1]!xPr(rAsepFail AsepRev2*_dT)+[1]!xPr(rInfecFail AsepRev2*_dT) -> 0.008481402947
D30: Daily Living / Daily Living / THA / ACR IV (septic history) / Alive / Aseptic Revision 3 / 3 / 3 | J30: =[1]!xPr(rInfecFail AsepRev3*_dT) -> 0.004987520807 | L30: =[1]!xPr(rInfecFail AsepRev3*_dT) -> 0.004987520807 | O30: =[1]!xPr(rAsepFail AsepRev3*_dT)+[1]!xPr(rInfecFail AsepRev3*_dT) -> 0.01493768706
D31: Daily Living / Daily Living / THA / ACR III (septic history) / Alive / Aseptic Revision 1 / 1 / 3 | H31: =[1]!xPr(rInfecFail AsepRev1*_dT)*(1-pInfecMort)*pInfecFail*(1-pInfecMort)*pInfecFair -> 0.00032511856 | Q31: =[1]!xPr(rInfecFail AsepRev1*_dT)*(1-pInfecMort)*pInfecFair -> 0.001536924102
D32: Daily Living / Daily Living / THA / ACR III (septic history) / Alive / Aseptic Revision 1 / 1 / 2 | H32: =[1]!xPr(rInfecFail AsepRev1*_dT)*(1-pInfecMort)*pInfecFair -> 0.001536924102
D33: Daily Living / Daily Living / THA / ACR III (septic history) / Alive / Aseptic Revision 2 / 2 / 3 | I33: =[1]!xPr(rInfecFail AsepRev2*_dT)*(1-pInfecMort)*pInfecFair -> 0.002687601646 | Q33: =[1]!xPr(rAsepFail AsepRev1*_dT)*(1-pASurgMort)*pAsepFair Rev2_ -> 0.00254175754
D34: Daily Living / Daily Living / Consrv Mgmt / ACR II (aseptic) / Alive / Aseptic Revision 1 / 1 / 1 | V34: =[1]!xPr(rAsepFail InitialTHA*_dT)*(1-pASurgMort)*pAsepFair Rev1_ -> 0.0006984799701
D35: Daily Living / Daily Living / Consrv Mgmt / ACR II (aseptic) / Alive / Aseptic Revision 2 / 2 / 2 | S35: =[1]!xPr(rAsepFail AsepRev1*_dT)*(1-pASurgMort)*pAsepFair Rev2_ -> 0.00254175754 | V35: =[1]!xPr(rAsepFail InitialTHA*_dT)*(1-pASurgMort)*pAsepFail Rev1_*(1-pASurgMort)*pAsepFair Rev2_ -> 0.0001840261895
D36: Daily Living / Daily Living / Consrv Mgmt / ACR II (aseptic) / Alive / Aseptic Revision 3 / 3 / 3 | S36: =[1]!xPr(rAsepFail AsepRev1*_dT)*(1-pASurgMort)*pAsepFail Rev2_*(1-pASurgMort)*pAsepFair Rev3_ -> 0.001187589257 | T36: =[1]!xPr(rAsepFail AsepRev2*_dT)*(1-pASurgMort)*pAsepFair Rev3_ -> 0.004223717621 | V36: =[1]!xPr(rAsepFail InitialTHA*_dT)*(1-pASurgMort)*pAsepFail Rev1_*(1-pASurgMort)*pAsepFail Rev2_*(1-pASurgMort)*pAsepFair Rev3_ -> 8.598283752e-05
D37: Daily Living / Daily Living / Consrv Mgmt / ACR III (aseptic) / Alive / Initial THA / 0 / 0 | E37: =(1-dTHA) -> 0
D38: Daily Living / Daily Living / Consrv Mgmt / ACR III (aseptic) / Alive / Aseptic Revision 3 / 3 / 3 | S38: =[1]!xPr(rAsepFail AsepRev1*_dT)*(1-pASurgMort)*pAsepFail Rev2_*(1-pASurgMort)*pAsepFail Rev3_ -> 0.0001979315428 | T38: =[1]!xPr(rAsepFail AsepRev2*_dT)*(1-pASurgMort)*pAsepFail Rev3_ -> 0.0007039529368 | U38: =[1]!xPr(rAsepFail AsepRev3*_dT) -> 0.009950166251 | V38: =[1]!xPr(rAsepFail InitialTHA*_dT)*(1-pASurgMort)*pAsepFail Rev1_*(1-pASurgMort)*pAsepFail Rev2_*(1-pASurgMort)*pAsepFail Rev3_ -> 1.433047292e-05 | W38: =[1]!xPr(rAsepFail AsepRev3*_dT) -> 0.009950166251
D39: Daily Living / Daily Living / Consrv Mgmt / ACR IV (aseptic) / Alive / Initial THA / 0 / 0 | V39: =[1]!xPr(rNatural*_dT) -> 0.003291275137
D40: Daily Living / Daily Living / Consrv Mgmt / ACR IV (aseptic) / Alive / Aseptic Revision 1 / 1 / 1 | X40: =[1]!xPr(rAsepFail InitialTHA*_dT)*(1-pASurgMort)*pAsepFair Rev1_ -> 0.0006984799701
D41: Daily Living / Daily Living / Consrv Mgmt / ACR IV (aseptic) / Alive / Aseptic Revision 2 / 2 / 2 | X41: =[1]!xPr(rAsepFail InitialTHA*_dT)*(1-pASurgMort)*pAsepFail Rev1_*(1-pASurgMort)*pAsepFair Rev2_ -> 0.0001840261895 | Y41: =[1]!xPr(rAsepFail AsepRev1*_dT)*(1-pASurgMort)*pAsepFair Rev2_ -> 0.00254175754
D42: Daily Living / Daily Living / Consrv Mgmt / ACR IV (aseptic) / Alive / Aseptic Revision 3 / 3 / 3 | W42: =[1]!xPr(rNatural*_dT) -> 0.003291275137 | X42: =[1]!xPr(rAsepFail InitialTHA*_dT)*((1-pASurgMort)*pAsepFail Rev1_*(1-pASurgMort)*pAsepFail Rev2_*(1-pASurgMort)*pAsepFair Rev3_+(1-pASurgMort)*pAsepFail Rev1_*(1-pASurgMort)*pAsepFail Rev2_*(1-pASurgMort)*pAsepFail Rev3_) -> 0.0001003133104 | Y42: =[1]!xPr(rAsepFail AsepRev1*_dT)*((1-pASurgMort)*pAsepFail Rev2_*(1-pASurgMort)*pAsepFair Rev3_+(1-pASurgMort)*pAsepFail Rev2_*(1-pASurgMort)*pAsepFail Rev3_) -> 0.0013855208 | Z42: =[1]!xPr(rAsepFail AsepRev2*_dT)*((1-pASurgMort)*pAsepFair Rev3_+(1-pASurgMort)*pAsepFail Rev3_) -> 0.004927670558 | AA42: =[1]!xPr(rAsepFail AsepRev3*_dT) -> 0.009950166251
D43: Daily Living / Daily Living / Consrv Mgmt / ACR IV (septic history) / Alive / Aseptic Revision 1 / 1 / 3 | S43: =[1]!xPr(rInfecFail AsepRev1*_dT)*(1-pInfecMort)*pInfecFail*(1-pInfecMort)*pInfecFail -> 8.940760401e-05 | Y43: =[1]!xPr(rInfecFail AsepRev1*_dT)*(1-pInfecMort)*pInfecFail*(1-pInfecMort)*pInfecFail -> 8.940760401e-05 | AB43: =[1]!xPr(rAsepFail AsepRev1*_dT)+[1]!xPr(rInfecFail AsepRev1*_dT) -> 0.005990011989 | AE43: =[1]!xPr(rAsepFail AsepRev1*_dT)+[1]!xPr(rInfecFail AsepRev1*_dT) -> 0.005990011989 | AF43: =[1]!xPr(rInfecFail AsepRev1*_dT)*(1-pInfecMort)*pInfecFail -> 0.0004226541281
D44: Daily Living / Daily Living / Consrv Mgmt / ACR IV (septic history) / Alive / Aseptic Revision 2 / 2 / 3 | T44: =[1]!xPr(rInfecFail AsepRev2*_dT)*(1-pInfecMort)*pInfecFail -> 0.0007390904526 | Z44: =[1]!xPr(rInfecFail AsepRev2*_dT)*(1-pInfecMort)*pInfecFail -> 0.0007390904526 | AC44: =[1]!xPr(rAsepFail AsepRev2*_dT)+[1]!xPr(rInfecFail AsepRev2*_dT) -> 0.008481402947 | AF44: =[1]!xPr(rAsepFail AsepRev1*_dT)*(1-pASurgMort)*pAsepFail Rev2_ -> 0.001402348988 | AG44: =[1]!xPr(rAsepFail AsepRev2*_dT)+[1]!xPr(rInfecFail AsepRev2*_dT) -> 0.008481402947
D45: Daily Living / Daily Living / Consrv Mgmt / ACR IV (septic history) / Alive / Aseptic Revision 3 / 3 / 3 | U45: =[1]!xPr(rInfecFail AsepRev3*_dT) -> 0.004987520807 | W45: =[1]!xPr(rInfecFail AsepRev3*_dT) -> 0.004987520807 | AA45: =[1]!xPr(rInfecFail AsepRev3*_dT) -> 0.004987520807 | AD45: =[1]!xPr(rAsepFail AsepRev3*_dT)+[1]!xPr(rInfecFail AsepRev3*_dT) -> 0.01493768706
D46: Daily Living / Daily Living / Consrv Mgmt / ACR III (septic history) / Alive / Aseptic Revision 1 / 1 / 3 | S46: =[1]!xPr(rInfecFail AsepRev1*_dT)*(1-pInfecMort)*pInfecFail*(1-pInfecMort)*pInfecFair -> 0.00032511856 | Y46: =[1]!xPr(rInfecFail AsepRev1*_dT)*(1-pInfecMort)*pInfecFail*(1-pInfecMort)*pInfecFair -> 0.00032511856 | AF46: =[1]!xPr(rInfecFail AsepRev1*_dT)*(1-pInfecMort)*pInfecFair -> 0.001536924102
D47: Daily Living / Daily Living / Consrv Mgmt / ACR III (septic history) / Alive / Aseptic Revision 1 / 1 / 2 | S47: =[1]!xPr(rInfecFail AsepRev1*_dT)*(1-pInfecMort)*pInfecFair -> 0.001536924102 | Y47: =[1]!xPr(rInfecFail AsepRev1*_dT)*(1-pInfecMort)*pInfecFair -> 0.001536924102
D48: Daily Living / Daily Living / Consrv Mgmt / ACR III (septic history) / Alive / Aseptic Revision 2 / 2 / 3 | T48: =[1]!xPr(rInfecFail AsepRev2*_dT)*(1-pInfecMort)*pInfecFair -> 0.002687601646 | Z48: =[1]!xPr(rInfecFail AsepRev2*_dT)*(1-pInfecMort)*pInfecFair -> 0.002687601646 | AF48: =[1]!xPr(rAsepFail AsepRev1*_dT)*(1-pASurgMort)*pAsepFair Rev2_ -> 0.00254175754
D49: Terminal Node | E49: =dTHA*pSurgMort -> 0 | F49: =[1]!xPr(rAsepFail InitialTHA*_dT)*(pASurgMort+(1-pASurgMort)*pAsepFail Rev1_*pASurgMort+(1-pASurgMort)*pAsepFail Rev1_*(1-pASurgMort)*pAsepFail Rev2_*pASurgMort)+[1]!xPr([1]!rMortUS(_t+Age,Gender)*_dT) -> 0.01255352163 | G49: =[1]!xPr(rAsepFail InitialTHA*_dT)*(pASurgMort+(1-pASurgMort)*pAsepFail Rev1_*pASurgMort+(1-pASurgMort)*pAsepFail Rev1_*(1-pASurgMort)*pAsepFail Rev2_*pASurgMort)+[1]!xPr([1]!rMortUS(_t+Age,Gender)*_dT) -> 0.01255352163 | H49: =[1]!xPr(rAsepFail AsepRev1*_dT)*(pASurgMort+(1-pASurgMort)*pAsepFail Rev2_*pASurgMort)+[1]!xPr(rInfecFail AsepRev1*_dT)*(pInfecMort+(1-pInfecMort)*pInfecFail*pInfecMort)+[1]!xPr([1]!rMortUS(_t+Age,Gender)*_dT) -> 0.01264812431 | I49: =[1]!xPr(rAsepFail AsepRev2*_dT)*pASurgMort+[1]!xPr(rInfecFail AsepRev2*_dT)*pInfecMort+[1]!xPr([1]!rMortUS(_t+Age,Gender)*_dT) -> 0.01266388122 | J49: =[1]!xPr([1]!rMortUS(_t+Age,Gender)*_dT) -> 0.01253684093 | K49: =[1]!xPr(rAsepFail InitialTHA*_dT)*(pASurgMort+(1-pASurgMort)*pAsepFail Rev1_*pASurgMort+(1-pASurgMort)*pAsepFail Rev1_*(1-pASurgMort)*pAsepFail Rev2_*pASurgMort)+[1]!xPr([1]!rMortUS(_t+Age,Gender)*_dT) -> 0.01255352163 | L49: =[1]!xPr([1]!rMortUS(_t+Age,Gender)*_dT) -> 0.01253684093 | M49: =[1]!xPr([1]!rMortUS(_t+Age,Gender)*_dT) -> 0.01253684093 | N49: =[1]!xPr([1]!rMortUS(_t+Age,Gender)*_dT) -> 0.01253684093 | O49: =[1]!xPr([1]!rMortUS(_t+Age,Gender)*_dT) -> 0.01253684093 | P49: =[1]!xPr([1]!rMortUS(_t+Age,Gender)*_dT) -> 0.01253684093 | Q49: =[1]!xPr(rAsepFail AsepRev1*_dT)*pASurgMort+[1]!xPr(rInfecFail AsepRev1*_dT)*pInfecMort+[1]!xPr([1]!rMortUS(_t+Age,Gender)*_dT) -> 0.01262316816 | R49: =[1]!xPr([1]!rMortUS(_t+Age,Gender)*_dT) -> 0.01253684093 | S49: =[1]!xPr(rAsepFail AsepRev1*_dT)*(pASurgMort+(1-pASurgMort)*pAsepFail Rev2_*pASurgMort)+[1]!xPr(rInfecFail AsepRev1*_dT)*(pInfecMort+(1-pInfecMort)*pInfecFail*pInfecMort)+[1]!xPr([1]!rMortUS(_t+Age,Gender)*_dT) -> 0.01264812431 | T49: =[1]!xPr(rAsepFail AsepRev2*_dT)*pASurgMort+[1]!xPr(rInfecFail AsepRev2*_dT)*pInfecMort+[1]!xPr([1]!rMortUS(_t+Age,Gender)*_dT) -> 0.01266388122 | U49: =[1]!xPr([1]!rMortUS(_t+Age,Gender)*_dT) -> 0.01253684093 | V49: =[1]!xPr(rAsepFail InitialTHA*_dT)*(pASurgMort+(1-pASurgMort)*pAsepFail Rev1_*pASurgMort+(1-pASurgMort)*pAsepFail Rev1_*(1-pASurgMort)*pAsepFail Rev2_*pASurgMort)+[1]!xPr([1]!rMortUS(_t+Age,Gender)*_dT) -> 0.01255352163 | W49: =[1]!xPr([1]!rMortUS(_t+Age,Gender)*_dT) -> 0.01253684093 | X49: =[1]!xPr(rAsepFail InitialTHA*_dT)*(pASurgMort+(1-pASurgMort)*pAsepFail Rev1_*pASurgMort+(1-pASurgMort)*pAsepFail Rev1_*(1-pASurgMort)*pAsepFail Rev2_*pASurgMort)+[1]!xPr([1]!rMortUS(_t+Age,Gender)*_dT) -> 0.01255352163 | Y49: =[1]!xPr(rAsepFail AsepRev1*_dT)*(pASurgMort+(1-pASurgMort)*pAsepFail Rev2_*pASurgMort)+[1]!xPr(rInfecFail AsepRev1*_dT)*(pInfecMort+(1-pInfecMort)*pInfecFail*pInfecMort)+[1]!xPr([1]!rMortUS(_t+Age,Gender)*_dT) -> 0.01264812431 | Z49: =[1]!xPr(rAsepFail AsepRev2*_dT)*pASurgMort+[1]!xPr(rInfecFail AsepRev2*_dT)*pInfecMort+[1]!xPr([1]!rMortUS(_t+Age,Gender)*_dT) -> 0.01266388122 | AA49: =[1]!xPr([1]!rMortUS(_t+Age,Gender)*_dT) -> 0.01253684093 | AB49: =[1]!xPr([1]!rMortUS(_t+Age,Gender)*_dT) -> 0.01253684093 | AC49: =[1]!xPr([1]!rMortUS(_t+Age,Gender)*_dT) -> 0.01253684093 | AD49: =[1]!xPr([1]!rMortUS(_t+Age,Gender)*_dT) -> 0.01253684093 | AE49: =[1]!xPr([1]!rMortUS(_t+Age,Gender)*_dT) -> 0.01253684093 | AF49: =[1]!xPr(rAsepFail AsepRev1*_dT)*pASurgMort+[1]!xPr(rInfecFail AsepRev1*_dT)*pInfecMort+[1]!xPr([1]!rMortUS(_t+Age,Gender)*_dT) -> 0.01262316816 | AG49: =[1]!xPr([1]!rMortUS(_t+Age,Gender)*_dT) -> 0.01253684093
D50: Entering Counts | E50: =SUMPRODUCT(_tR,E20:AH20) -> 0 | F50: =SUMPRODUCT(_tR,E21:AH21) -> 0 | G50: =SUMPRODUCT(_tR,E22:AH22) -> 0 | H50: =SUMPRODUCT(_tR,E23:AH23) -> 0.0006524682895 | I50: =SUMPRODUCT(_tR,E24:AH24) -> 0.0001802248898 | J50: =SUMPRODUCT(_tR,E25:AH25) -> 8.790260219e-05 | K50: =SUMPRODUCT(_tR,E26:AH26) -> 0 | L50: =SUMPRODUCT(_tR,E27:AH27) -> 1.951631328e-05 | M50: =SUMPRODUCT(_tR,E28:AH28) -> 3.137189882e-07 | N50: =SUMPRODUCT(_tR,E29:AH29) -> 7.128791684e-07 | O50: =SUMPRODUCT(_tR,E30:AH30) -> 2.511902604e-06 | P50: =SUMPRODUCT(_tR,E31:AH31) -> 1.080056497e-06 | Q50: =SUMPRODUCT(_tR,E32:AH32) -> 5.031605447e-06 | R50: =SUMPRODUCT(_tR,E33:AH33) -> 2.377643211e-06 | S50: =SUMPRODUCT(_tR,E34:AH34) -> 0 | T50: =SUMPRODUCT(_tR,E35:AH35) -> 0 | U50: =SUMPRODUCT(_tR,E36:AH36) -> 0 | V50: =SUMPRODUCT(_tR,E37:AH37) -> 0 | W50: =SUMPRODUCT(_tR,E38:AH38) -> 0 | X50: =SUMPRODUCT(_tR,E39:AH39) -> 0 | Y50: =SUMPRODUCT(_tR,E40:AH40) -> 0 | Z50: =SUMPRODUCT(_tR,E41:AH41) -> 0 | AA50: =SUMPRODUCT(_tR,E42:AH42) -> 0 | AB50: =SUMPRODUCT(_tR,E43:AH43) -> 0 | AC50: =SUMPRODUCT(_tR,E44:AH44) -> 0 | AD50: =SUMPRODUCT(_tR,E45:AH45) -> 0 | AE50: =SUMPRODUCT(_tR,E46:AH46) -> 0 | AF50: =SUMPRODUCT(_tR,E47:AH47) -> 0 | AG50: =SUMPRODUCT(_tR,E48:AH48) -> 0 | AH50: =SUMPRODUCT(_tR,E49:AH49) -> 0.01178549193
D51: Departing Counts | E51: =IF(_CD=1,E19,E19*SUM(E20:E49)) -> 0 | F51: =IF(_CD=1,F19,F19*SUM(F20:F49)) -> 0.009292057169 | G51: =IF(_CD=1,G19,G19*SUM(G20:G49)) -> 0.002690350628 | H51: =IF(_CD=1,H19,H19*SUM(H20:H49)) -> 6.065349223e-05 | I51: =IF(_CD=1,I19,I19*SUM(I20:I49)) -> 1.83914551e-05 | J51: =IF(_CD=1,J19,J19*SUM(J20:J49)) -> 1.129053726e-05 | K51: =IF(_CD=1,K19,K19*SUM(K20:K49)) -> 0.0006622401546 | L51: =IF(_CD=1,L19,L19*SUM(L20:L49)) -> 2.14519249e-06 | M51: =IF(_CD=1,M19,M19*SUM(M20:M49)) -> 1.138803799e-08 | N51: =IF(_CD=1,N19,N19*SUM(N20:N49)) -> 2.869424475e-08 | O51: =IF(_CD=1,O19,O19*SUM(O20:O49)) -> 1.340473064e-07 | P51: =IF(_CD=1,P19,P19*SUM(P20:P49)) -> 4.02750292e-08 | Q51: =IF(_CD=1,Q19,Q19*SUM(Q20:Q49)) -> 1.889955408e-07 | R51: =IF(_CD=1,R19,R19*SUM(R20:R49)) -> 9.980345881e-08 | S51: =IF(_CD=1,S19,S19*SUM(S20:S49)) -> 0 | T51: =IF(_CD=1,T19,T19*SUM(T20:T49)) -> 0 | U51: =IF(_CD=1,U19,U19*SUM(U20:U49)) -> 0 | V51: =IF(_CD=1,V19,V19*SUM(V20:V49)) -> 0 | W51: =IF(_CD=1,W19,W19*SUM(W20:W49)) -> 0 | X51: =IF(_CD=1,X19,X19*SUM(X20:X49)) -> 0 | Y51: =IF(_CD=1,Y19,Y19*SUM(Y20:Y49)) -> 0 | Z51: =IF(_CD=1,Z19,Z19*SUM(Z20:Z49)) -> 0 | AA51: =IF(_CD=1,AA19,AA19*SUM(AA20:AA49)) -> 0 | AB51: =IF(_CD=1,AB19,AB19*SUM(AB20:AB49)) -> 0 | AC51: =IF(_CD=1,AC19,AC19*SUM(AC20:AC49)) -> 0 | AD51: =IF(_CD=1,AD19,AD19*SUM(AD20:AD49)) -> 0 | AE51: =IF(_CD=1,AE19,AE19*SUM(AE20:AE49)) -> 0 | AF51: =IF(_CD=1,AF19,AF19*SUM(AF20:AF49)) -> 0 | AG51: =IF(_CD=1,AG19,AG19*SUM(AG20:AG49)) -> 0 | AH51: =IF(_CD=1,AH19,AH19*SUM(AH20:AH49)) -> 0
D52: =IF(_CP,D19,D19+_dT) -> 0.6 | E52: =E19+E50-E51 -> 0 | F52: =F19+F50-F51 -> 0.6771605892 | G52: =G19+G50-G51 -> 0.1960598588 | H52: =H19+H50-H51 -> 0.003865629972 | I52: =I19+I50-I51 -> 0.001036856829 | J52: =J19+J50-J51 -> 0.0004875576965 | K52: =K19+K50-K51 -> 0.04826088832 | L52: =L19+L50-L51 -> 9.545044176e-05 | M52: =M19+M50-M51 -> 9.170083611e-07 | N52: =N19+N50-N51 -> 2.049391499e-06 | O52: =O19+O50-O51 -> 7.256821971e-06 | P52: =P19+P50-P51 -> 3.213654675e-06 | Q52: =Q19+Q50-Q51 -> 1.5043778e-05 | R52: =R19+R50-R51 -> 7.02626019e-06 | S52: =S19+S50-S51 -> 0 | T52: =T19+T50-T51 -> 0 | U52: =U19+U50-U51 -> 0 | V52: =V19+V50-V51 -> 0 | W52: =W19+W50-W51 -> 0 | X52: =X19+X50-X51 -> 0 | Y52: =Y19+Y50-Y51 -> 0 | Z52: =Z19+Z50-Z51 -> 0 | AA52: =AA19+AA50-AA51 -> 0 | AB52: =AB19+AB50-AB51 -> 0 | AC52: =AC19+AC50-AC51 -> 0 | AD52: =AD19+AD50-AD51 -> 0 | AE52: =AE19+AE50-AE51 -> 0 | AF52: =AF19+AF50-AF51 -> 0 | AG52: =AG19+AG50-AG51 -> 0 | AH52: =AH19+AH50-AH51 -> 0.07299766185
D54: Quality Coefficients (at t): | F54: =qI -> 1 | G54: =qII -> 0.8 | H54: =qII -> 0.8 | I54: =qII -> 0.8 | J54: =qII -> 0.8 | K54: =qIII -> 0.5 | L54: =qIII -> 0.5 | M54: =qIV -> 0.3 | N54: =qIV -> 0.3 | O54: =qIV -> 0.3 | P54: =qIII -> 0.5 | Q54: =qIII -> 0.5 | R54: =qIII -> 0.5 | S54: =qII -> 0.8 | T54: =qII -> 0.8 | U54: =qII -> 0.8 | V54: =qIII -> 0.5 | W54: =qIII -> 0.5 | X54: =qIV -> 0.3 | Y54: =qIV -> 0.3 | Z54: =qIV -> 0.3 | AA54: =qIV -> 0.3 | AB54: =qIV -> 0.3 | AC54: =qIV -> 0.3 | AD54: =qIV -> 0.3 | AE54: =qIII -> 0.5 | AF54: =qIII -> 0.5 | AG54: =qIII -> 0.5
D55: (at t+dt): | F55: =qI*EXP(-_dR*_dT) -> 0.9970044955 | G55: =qII*EXP(-_dR*_dT) -> 0.7976035964 | H55: =qII*EXP(-_dR*_dT) -> 0.7976035964 | I55: =qII*EXP(-_dR*_dT) -> 0.7976035964 | J55: =qII*EXP(-_dR*_dT) -> 0.7976035964 | K55: =qIII*EXP(-_dR*_dT) -> 0.4985022478 | L55: =qIII*EXP(-_dR*_dT) -> 0.4985022478 | M55: =qIV*EXP(-_dR*_dT) -> 0.2991013487 | N55: =qIV*EXP(-_dR*_dT) -> 0.2991013487 | O55: =qIV*EXP(-_dR*_dT) -> 0.2991013487 | P55: =qIII*EXP(-_dR*_dT) -> 0.4985022478 | Q55: =qIII*EXP(-_dR*_dT) -> 0.4985022478 | R55: =qIII*EXP(-_dR*_dT) -> 0.4985022478 | S55: =qII*EXP(-_dR*_dT) -> 0.7976035964 | T55: =qII*EXP(-_dR*_dT) -> 0.7976035964 | U55: =qII*EXP(-_dR*_dT) -> 0.7976035964 | V55: =qIII*EXP(-_dR*_dT) -> 0.4985022478 | W55: =qIII*EXP(-_dR*_dT) -> 0.4985022478 | X55: =qIV*EXP(-_dR*_dT) -> 0.2991013487 | Y55: =qIV*EXP(-_dR*_dT) -> 0.2991013487 | Z55: =qIV*EXP(-_dR*_dT) -> 0.2991013487 | AA55: =qIV*EXP(-_dR*_dT) -> 0.2991013487 | AB55: =qIV*EXP(-_dR*_dT) -> 0.2991013487 | AC55: =qIV*EXP(-_dR*_dT) -> 0.2991013487 | AD55: =qIV*EXP(-_dR*_dT) -> 0.2991013487 | AE55: =qIII*EXP(-_dR*_dT) -> 0.4985022478 | AF55: =qIII*EXP(-_dR*_dT) -> 0.4985022478 | AG55: =qIII*EXP(-_dR*_dT) -> 0.4985022478
C57: Transition QALY Tolls: | D57: Daily Living / Daily Living / THA / ACR I (aseptic) / Alive / Initial THA / 0 / 0 | E57: =0 -> 0
D58: Daily Living / Daily Living / THA / ACR II (aseptic) / Alive / Initial THA / 0 / 0 | E58: =0 -> 0
D59: Daily Living / Daily Living / THA / ACR III (aseptic) / Alive / Initial THA / 0 / 0 | E59: =0 -> 0
D60: Daily Living / Daily Living / Consrv Mgmt / ACR III (aseptic) / Alive / Initial THA / 0 / 0 | E60: =0 -> 0
D61: Aseptic Failure / Daily Living / THA / ACR III (aseptic) / Alive / Initial THA / 0 / 0 | F61: =0 -> 0 | G61: =0 -> 0 | K61: =0 -> 0
D62: Aseptic Failure / Daily Living / THA / ACR III (aseptic) / Alive / Aseptic Revision 1 / 1 / 1 | H62: =0 -> 0
D63: Daily Living / Infection Failure / THA / ACR IV (septic history) / Alive / Aseptic Revision 1 / 1 / 1 | H63: =0 -> 0
D64: Aseptic Failure / Daily Living / THA / ACR III (aseptic) / Alive / Aseptic Revision 2 / 2 / 2 | I64: =0 -> 0
D65: Daily Living / Infection Failure / THA / ACR IV (septic history) / Alive / Aseptic Revision 2 / 2 / 2 | I65: =0 -> 0
D66: Aseptic Failure / Daily Living / THA / ACR III (aseptic) / Alive / Aseptic Revision 3 / 3 / 3 | J66: =0 -> 0 | L66: =0 -> 0
D67: Daily Living / Infection Failure / THA / ACR IV (septic history) / Alive / Aseptic Revision 3 / 3 / 3 | J67: =0 -> 0 | L67: =0 -> 0 | O67: =0 -> 0
D68: Aseptic Failure / Daily Living / THA / ACR IV (septic history) / Alive / Aseptic Revision 1 / 1 / 3 | M68: =0 -> 0 | P68: =0 -> 0
D69: Daily Living / Infection Failure / THA / ACR IV (septic history) / Alive / Aseptic Revision 1 / 1 / 3 | M69: =0 -> 0 | P69: =0 -> 0
D70: Aseptic Failure / Daily Living / THA / ACR IV (septic history) / Alive / Aseptic Revision 2 / 2 / 3 | N70: =0 -> 0 | R70: =0 -> 0
D71: Daily Living / Infection Failure / THA / ACR IV (septic history) / Alive / Aseptic Revision 2 / 2 / 3 | N71: =0 -> 0 | R71: =0 -> 0
D72: Aseptic Failure / Daily Living / THA / ACR IV (septic history) / Alive / Aseptic Revision 3 / 3 / 3 | O72: =0 -> 0
D73: Aseptic Failure / Daily Living / THA / ACR IV (septic history) / Alive / Aseptic Revision 1 / 1 / 2 | Q73: =0 -> 0
D74: Daily Living / Infection Failure / THA / ACR IV (septic history) / Alive / Aseptic Revision 1 / 1 / 2 | Q74: =0 -> 0
D75: Aseptic Failure / Daily Living / Consrv Mgmt / ACR III (aseptic) / Alive / Aseptic Revision 1 / 1 / 1 | S75: =0 -> 0
D76: Daily Living / Infection Failure / Consrv Mgmt / ACR IV (septic history) / Alive / Aseptic Revision 1 / 1 / 1 | S76: =0 -> 0 | Y76: =0 -> 0
D77: Aseptic Failure / Daily Living / Consrv Mgmt / ACR III (aseptic) / Alive / Aseptic Revision 2 / 2 / 2 | T77: =0 -> 0
D78: Daily Living / Infection Failure / Consrv Mgmt / ACR IV (septic history) / Alive / Aseptic Revision 2 / 2 / 2 | T78: =0 -> 0 | Z78: =0 -> 0
D79: Aseptic Failure / Daily Living / Consrv Mgmt / ACR III (aseptic) / Alive / Aseptic Revision 3 / 3 / 3 | U79: =0 -> 0 | W79: =0 -> 0
D80: Daily Living / Infection Failure / Consrv Mgmt / ACR IV (septic history) / Alive / Aseptic Revision 3 / 3 / 3 | U80: =0 -> 0 | W80: =0 -> 0 | AA80: =0 -> 0 | AD80: =0 -> 0
D81: Aseptic Failure / Daily Living / Consrv Mgmt / ACR III (aseptic) / Alive / Initial THA / 0 / 0 | V81: =0 -> 0
D82: Daily Living / Daily Living / Consrv Mgmt / ACR IV (aseptic) / Alive / Initial THA / 0 / 0 | V82: =0 -> 0
D83: Daily Living / Daily Living / Consrv Mgmt / ACR IV (aseptic) / Alive / Aseptic Revision 3 / 3 / 3 | W83: =0 -> 0
D84: Aseptic Failure / Daily Living / Consrv Mgmt / ACR IV (aseptic) / Alive / Initial THA / 0 / 0 | X84: =0 -> 0
D85: Aseptic Failure / Daily Living / Consrv Mgmt / ACR IV (aseptic) / Alive / Aseptic Revision 1 / 1 / 1 | Y85: =0 -> 0
D86: Aseptic Failure / Daily Living / Consrv Mgmt / ACR IV (aseptic) / Alive / Aseptic Revision 2 / 2 / 2 | Z86: =0 -> 0
D87: Aseptic Failure / Daily Living / Consrv Mgmt / ACR IV (aseptic) / Alive / Aseptic Revision 3 / 3 / 3 | AA87: =0 -> 0
D88: Aseptic Failure / Daily Living / Consrv Mgmt / ACR IV (septic history) / Alive / Aseptic Revision 1 / 1 / 3 | AB88: =0 -> 0 | AE88: =0 -> 0
D89: Daily Living / Infection Failure / Consrv Mgmt / ACR IV (septic history) / Alive / Aseptic Revision 1 / 1 / 3 | AB89: =0 -> 0 | AE89: =0 -> 0
D90: Aseptic Failure / Daily Living / Consrv Mgmt / ACR IV (septic history) / Alive / Aseptic Revision 2 / 2 / 3 | AC90: =0 -> 0 | AG90: =0 -> 0
D91: Daily Living / Infection Failure / Consrv Mgmt / ACR IV (septic history) / Alive / Aseptic Revision 2 / 2 / 3 | AC91: =0 -> 0 | AG91: =0 -> 0
D92: Aseptic Failure / Daily Living / Consrv Mgmt / ACR IV (septic history) / Alive / Aseptic Revision 3 / 3 / 3 | AD92: =0 -> 0
D93: Aseptic Failure / Daily Living / Consrv Mgmt / ACR IV (septic history) / Alive / Aseptic Revision 1 / 1 / 2 | AF93: =0 -> 0
D94: Daily Living / Infection Failure / Consrv Mgmt / ACR IV (septic history) / Alive / Aseptic Revision 1 / 1 / 2 | AF94: =0 -> 0
D95: Terminal Node | E95: =0 -> 0 | F95: =0 -> 0 | G95: =0 -> 0 | H95: =0 -> 0 | I95: =0 -> 0 | J95: =0 -> 0 | K95: =0 -> 0 | L95: =0 -> 0 | M95: =0 -> 0 | N95: =0 -> 0 | O95: =0 -> 0 | P95: =0 -> 0 | Q95: =0 -> 0 | R95: =0 -> 0 | S95: =0 -> 0 | T95: =0 -> 0 | U95: =0 -> 0 | V95: =0 -> 0 | W95: =0 -> 0 | X95: =0 -> 0 | Y95: =0 -> 0 | Z95: =0 -> 0 | AA95: =0 -> 0 | AB95: =0 -> 0 | AC95: =0 -> 0 | AD95: =0 -> 0 | AE95: =0 -> 0 | AF95: =0 -> 0 | AG95: =0 -> 0
D96: Incremental QALY Tolls: | E96: =IF(_t>_tF,0,_tR*SUM(E57:E95)) -> 0 | F96: =IF(_t>_tF,0,_tR*SUM(F57:F95)) -> 0 | G96: =IF(_t>_tF,0,_tR*SUM(G57:G95)) -> 0 | H96: =IF(_t>_tF,0,_tR*SUM(H57:H95)) -> 0 | I96: =IF(_t>_tF,0,_tR*SUM(I57:I95)) -> 0 | J96: =IF(_t>_tF,0,_tR*SUM(J57:J95)) -> 0 | K96: =IF(_t>_tF,0,_tR*SUM(K57:K95)) -> 0 | L96: =IF(_t>_tF,0,_tR*SUM(L57:L95)) -> 0 | M96: =IF(_t>_tF,0,_tR*SUM(M57:M95)) -> 0 | N96: =IF(_t>_tF,0,_tR*SUM(N57:N95)) -> 0 | O96: =IF(_t>_tF,0,_tR*SUM(O57:O95)) -> 0 | P96: =IF(_t>_tF,0,_tR*SUM(P57:P95)) -> 0 | Q96: =IF(_t>_tF,0,_tR*SUM(Q57:Q95)) -> 0 | R96: =IF(_t>_tF,0,_tR*SUM(R57:R95)) -> 0 | S96: =IF(_t>_tF,0,_tR*SUM(S57:S95)) -> 0 | T96: =IF(_t>_tF,0,_tR*SUM(T57:T95)) -> 0 | U96: =IF(_t>_tF,0,_tR*SUM(U57:U95)) -> 0 | V96: =IF(_t>_tF,0,_tR*SUM(V57:V95)) -> 0 | W96: =IF(_t>_tF,0,_tR*SUM(W57:W95)) -> 0 | X96: =IF(_t>_tF,0,_tR*SUM(X57:X95)) -> 0 | Y96: =IF(_t>_tF,0,_tR*SUM(Y57:Y95)) -> 0 | Z96: =IF(_t>_tF,0,_tR*SUM(Z57:Z95)) -> 0 | AA96: =IF(_t>_tF,0,_tR*SUM(AA57:AA95)) -> 0 | AB96: =IF(_t>_tF,0,_tR*SUM(AB57:AB95)) -> 0 | AC96: =IF(_t>_tF,0,_tR*SUM(AC57:AC95)) -> 0 | AD96: =IF(_t>_tF,0,_tR*SUM(AD57:AD95)) -> 0 | AE96: =IF(_t>_tF,0,_tR*SUM(AE57:AE95)) -> 0 | AF96: =IF(_t>_tF,0,_tR*SUM(AF57:AF95)) -> 0 | AG96: =IF(_t>_tF,0,_tR*SUM(AG57:AG95)) -> 0
D97: Incremental QALYs: | E97: =IF(_t>_tF,0,IF(_CP,0,_dT/2*(E54*E19+E55*E52))) -> 0 | F97: =IF(_t>_tF,0,IF(_CP,0,_dT/2*(F54*F19+F55*F52))) -> 0.0680792399 | G97: =IF(_t>_tF,0,IF(_CP,0,_dT/2*(G54*G19+G55*G52))) -> 0.0157689108 | H97: =IF(_t>_tF,0,IF(_CP,0,_dT/2*(H54*H19+H55*H52))) -> 0.0002851146254 | I97: =IF(_t>_tF,0,IF(_CP,0,_dT/2*(I54*I19+I55*I52))) -> 7.635097256e-05 | J97: =IF(_t>_tF,0,IF(_CP,0,_dT/2*(J54*J19+J55*J52))) -> 3.588171387e-05 | K97: =IF(_t>_tF,0,IF(_CP,0,_dT/2*(K54*K19+K55*K52))) -> 0.002425986277 | L97: =IF(_t>_tF,0,IF(_CP,0,_dT/2*(L54*L19+L55*L52))) -> 4.331096013e-06 | M97: =IF(_t>_tF,0,IF(_CP,0,_dT/2*(M54*M19+M55*M52))) -> 2.293408304e-08 | N97: =IF(_t>_tF,0,IF(_CP,0,_dT/2*(N54*N19+N55*N52))) -> 5.112688671e-08 | O97: =IF(_t>_tF,0,IF(_CP,0,_dT/2*(O54*O19+O55*O52))) -> 1.81710762e-07 | P97: =IF(_t>_tF,0,IF(_CP,0,_dT/2*(P54*P19+P55*P52))) -> 1.344475342e-07 | Q97: =IF(_t>_tF,0,IF(_CP,0,_dT/2*(Q54*Q19+Q55*Q52))) -> 6.299970595e-07 | R97: =IF(_t>_tF,0,IF(_CP,0,_dT/2*(R54*R19+R55*R52))) -> 2.938408359e-07 | S97: =IF(_t>_tF,0,IF(_CP,0,_dT/2*(S54*S19+S55*S52))) -> 0 | T97: =IF(_t>_tF,0,IF(_CP,0,_dT/2*(T54*T19+T55*T52))) -> 0 | U97: =IF(_t>_tF,0,IF(_CP,0,_dT/2*(U54*U19+U55*U52))) -> 0 | V97: =IF(_t>_tF,0,IF(_CP,0,_dT/2*(V54*V19+V55*V52))) -> 0 | W97: =IF(_t>_tF,0,IF(_CP,0,_dT/2*(W54*W19+W55*W52))) -> 0 | X97: =IF(_t>_tF,0,IF(_CP,0,_dT/2*(X54*X19+X55*X52))) -> 0 | Y97: =IF(_t>_tF,0,IF(_CP,0,_dT/2*(Y54*Y19+Y55*Y52))) -> 0 | Z97: =IF(_t>_tF,0,IF(_CP,0,_dT/2*(Z54*Z19+Z55*Z52))) -> 0 | AA97: =IF(_t>_tF,0,IF(_CP,0,_dT/2*(AA54*AA19+AA55*AA52))) -> 0 | AB97: =IF(_t>_tF,0,IF(_CP,0,_dT/2*(AB54*AB19+AB55*AB52))) -> 0 | AC97: =IF(_t>_tF,0,IF(_CP,0,_dT/2*(AC54*AC19+AC55*AC52))) -> 0 | AD97: =IF(_t>_tF,0,IF(_CP,0,_dT/2*(AD54*AD19+AD55*AD52))) -> 0 | AE97: =IF(_t>_tF,0,IF(_CP,0,_dT/2*(AE54*AE19+AE55*AE52))) -> 0 | AF97: =IF(_t>_tF,0,IF(_CP,0,_dT/2*(AF54*AF19+AF55*AF52))) -> 0 | AG97: =IF(_t>_tF,0,IF(_CP,0,_dT/2*(AG54*AG19+AG55*AG52))) -> 0
D98: Incremental Total: | E98: =E97-E96 -> 0 | F98: =F97-F96 -> 0.0680792399 | G98: =G97-G96 -> 0.0157689108 | H98: =H97-H96 -> 0.0002851146254 | I98: =I97-I96 -> 7.635097256e-05 | J98: =J97-J96 -> 3.588171387e-05 | K98: =K97-K96 -> 0.002425986277 | L98: =L97-L96 -> 4.331096013e-06 | M98: =M97-M96 -> 2.293408304e-08 | N98: =N97-N96 -> 5.112688671e-08 | O98: =O97-O96 -> 1.81710762e-07 | P98: =P97-P96 -> 1.344475342e-07 | Q98: =Q97-Q96 -> 6.299970595e-07 | R98: =R97-R96 -> 2.938408359e-07 | S98: =S97-S96 -> 0 | T98: =T97-T96 -> 0 | U98: =U97-U96 -> 0 | V98: =V97-V96 -> 0 | W98: =W97-W96 -> 0 | X98: =X97-X96 -> 0 | Y98: =Y97-Y96 -> 0 | Z98: =Z97-Z96 -> 0 | AA98: =AA97-AA96 -> 0 | AB98: =AB97-AB96 -> 0 | AC98: =AC97-AC96 -> 0 | AD98: =AD97-AD96 -> 0 | AE98: =AE97-AE96 -> 0 | AF98: =AF97-AF96 -> 0 | AG98: =AG97-AG96 -> 0
D99: Cum Discounted QALYs: | E99: =IF(_R,E98,IF(_t>=_tF,E99,E99+E98*EXP(-_dR*_t))) -> 0 | F99: =IF(_R,F98,IF(_t>=_tF,F99,F99+F98*EXP(-_dR*_t))) -> 0.4190151134 | G99: =IF(_R,G98,IF(_t>=_tF,G99,G99+G98*EXP(-_dR*_t))) -> 0.09705472559 | H99: =IF(_R,H98,IF(_t>=_tF,H99,H99+H98*EXP(-_dR*_t))) -> 0.0009447191036 | I99: =IF(_R,I98,IF(_t>=_tF,I99,I99+I98*EXP(-_dR*_t))) -> 0.0002516192484 | J99: =IF(_R,J98,IF(_t>=_tF,J99,J99+J98*EXP(-_dR*_t))) -> 0.0001180231112 | K99: =IF(_R,K98,IF(_t>=_tF,K99,K99+K98*EXP(-_dR*_t))) -> 0.01493149624 | L99: =IF(_R,L98,IF(_t>=_tF,L99,L99+L98*EXP(-_dR*_t))) -> 1.359691368e-05 | M99: =IF(_R,M98,IF(_t>=_tF,M99,M99+M98*EXP(-_dR*_t))) -> 4.999499341e-08 | N99: =IF(_R,N98,IF(_t>=_tF,N99,N99+N98*EXP(-_dR*_t))) -> 1.108342076e-07 | O99: =IF(_R,O98,IF(_t>=_tF,O99,O99+O98*EXP(-_dR*_t))) -> 3.971854911e-07 | P99: =IF(_R,P98,IF(_t>=_tF,P99,P99+P98*EXP(-_dR*_t))) -> 2.954805272e-07 | Q99: =IF(_R,Q98,IF(_t>=_tF,Q99,Q99+Q98*EXP(-_dR*_t))) -> 1.387584563e-06 | R99: =IF(_R,R98,IF(_t>=_tF,R99,R99+R98*EXP(-_dR*_t))) -> 6.452365763e-07 | S99: =IF(_R,S98,IF(_t>=_tF,S99,S99+S98*EXP(-_dR*_t))) -> 0 | T99: =IF(_R,T98,IF(_t>=_tF,T99,T99+T98*EXP(-_dR*_t))) -> 0 | U99: =IF(_R,U98,IF(_t>=_tF,U99,U99+U98*EXP(-_dR*_t))) -> 0 | V99: =IF(_R,V98,IF(_t>=_tF,V99,V99+V98*EXP(-_dR*_t))) -> 0 | W99: =IF(_R,W98,IF(_t>=_tF,W99,W99+W98*EXP(-_dR*_t))) -> 0 | X99: =IF(_R,X98,IF(_t>=_tF,X99,X99+X98*EXP(-_dR*_t))) -> 0 | Y99: =IF(_R,Y98,IF(_t>=_tF,Y99,Y99+Y98*EXP(-_dR*_t))) -> 0 | Z99: =IF(_R,Z98,IF(_t>=_tF,Z99,Z99+Z98*EXP(-_dR*_t))) -> 0 | AA99: =IF(_R,AA98,IF(_t>=_tF,AA99,AA99+AA98*EXP(-_dR*_t))) -> 0 | AB99: =IF(_R,AB98,IF(_t>=_tF,AB99,AB99+AB98*EXP(-_dR*_t))) -> 0 | AC99: =IF(_R,AC98,IF(_t>=_tF,AC99,AC99+AC98*EXP(-_dR*_t))) -> 0 | AD99: =IF(_R,AD98,IF(_t>=_tF,AD99,AD99+AD98*EXP(-_dR*_t))) -> 0 | AE99: =IF(_R,AE98,IF(_t>=_tF,AE99,AE99+AE98*EXP(-_dR*_t))) -> 0 | AF99: =IF(_R,AF98,IF(_t>=_tF,AF99,AF99+AF98*EXP(-_dR*_t))) -> 0 | AG99: =IF(_R,AG98,IF(_t>=_tF,AG99,AG99+AG98*EXP(-_dR*_t))) -> 0
D100: Overall Cum QALYs = | E100: =SUM(E99:AG99) -> 0.5323321799
D102: Cost Coefficients (at t): | F102: =0 -> 0 | G102: =0 -> 0 | H102: =0 -> 0 | I102: =0 -> 0 | J102: =0 -> 0 | K102: =cMed -> 775 | L102: =cMed -> 775 | M102: =(cMed+cCustodial) -> 35775 | N102: =(cMed+cCustodial) -> 35775 | O102: =(cMed+cCustodial) -> 35775 | P102: =cMed -> 775 | Q102: =cMed -> 775 | R102: =cMed -> 775 | S102: =0 -> 0 | T102: =0 -> 0 | U102: =0 -> 0 | V102: =cMed -> 775 | W102: =cMed -> 775 | X102: =(cMed+cCustodial) -> 35775 | Y102: =(cMed+cCustodial) -> 35775 | Z102: =(cMed+cCustodial) -> 35775 | AA102: =(cMed+cCustodial) -> 35775 | AB102: =(cMed+cCustodial) -> 35775 | AC102: =(cMed+cCustodial) -> 35775 | AD102: =(cMed+cCustodial) -> 35775 | AE102: =cMed -> 775 | AF102: =cMed -> 775 | AG102: =cMed -> 775
D103: (at t+dt): | F103: =0 -> 0 | G103: =0 -> 0 | H103: =0 -> 0 | I103: =0 -> 0 | J103: =0 -> 0 | K103: =cMed*EXP(-_dR*_dT) -> 772.678484 | L103: =cMed*EXP(-_dR*_dT) -> 772.678484 | M103: =(cMed+cCustodial)*EXP(-_dR*_dT) -> 35667.83583 | N103: =(cMed+cCustodial)*EXP(-_dR*_dT) -> 35667.83583 | O103: =(cMed+cCustodial)*EXP(-_dR*_dT) -> 35667.83583 | P103: =cMed*EXP(-_dR*_dT) -> 772.678484 | Q103: =cMed*EXP(-_dR*_dT) -> 772.678484 | R103: =cMed*EXP(-_dR*_dT) -> 772.678484 | S103: =0 -> 0 | T103: =0 -> 0 | U103: =0 -> 0 | V103: =cMed*EXP(-_dR*_dT) -> 772.678484 | W103: =cMed*EXP(-_dR*_dT) -> 772.678484 | X103: =(cMed+cCustodial)*EXP(-_dR*_dT) -> 35667.83583 | Y103: =(cMed+cCustodial)*EXP(-_dR*_dT) -> 35667.83583 | Z103: =(cMed+cCustodial)*EXP(-_dR*_dT) -> 35667.83583 | AA103: =(cMed+cCustodial)*EXP(-_dR*_dT) -> 35667.83583 | AB103: =(cMed+cCustodial)*EXP(-_dR*_dT) -> 35667.83583 | AC103: =(cMed+cCustodial)*EXP(-_dR*_dT) -> 35667.83583 | AD103: =(cMed+cCustodial)*EXP(-_dR*_dT) -> 35667.83583 | AE103: =cMed*EXP(-_dR*_dT) -> 772.678484 | AF103: =cMed*EXP(-_dR*_dT) -> 772.678484 | AG103: =cMed*EXP(-_dR*_dT) -> 772.678484
C105: Transition Cost Tolls: | D105: Daily Living / Daily Living / THA / ACR I (aseptic) / Alive / Initial THA / 0 / 0 | E105: =dTHA*(1-pSurgMort)*pSuccess*(cHospInit+cPhys+cRehab) -> 18371.52209
D106: Daily Living / Daily Living / THA / ACR II (aseptic) / Alive / Initial THA / 0 / 0 | E106: =dTHA*(1-pSurgMort)*pFair*(cHospInit+cPhys+cRehab) -> 5319.148936
D107: Daily Living / Daily Living / THA / ACR III (aseptic) / Alive / Initial THA / 0 / 0 | E107: =dTHA*(1-pSurgMort)*pFailure*(cHospInit+cPhys+cRehab) -> 1309.328969
D108: Daily Living / Daily Living / Consrv Mgmt / ACR III (aseptic) / Alive / Initial THA / 0 / 0 | E108: =0 -> 0
D109: Aseptic Failure / Daily Living / THA / ACR III (aseptic) / Alive / Initial THA / 0 / 0 | F109: =[1]!xPr(rAsepFail InitialTHA*_dT)*(pASurgMort*cTotRev+(1-pASurgMort)*pAsepFail Rev1_*pASurgMort*(cTotRev+cTotRev)+(1-pASurgMort)*pAsepFail Rev1_*(1-pASurgMort)*pAsepFail Rev2_*pASurgMort*(cTotRev+cTotRev+cTotRev)+(1-pASurgMort)*pAsepFair Rev1_*cTotRev+(1-pASurgMort)*pAsepFail Rev1_*(1-pASurgMort)*pAsepFair Rev2_*(cTotRev+cTotRev)+(1-pASurgMort)*pAsepFail Rev1_*(1-pASurgMort)*pAsepFail Rev2_*(1-pASurgMort)*pAsepFair Rev3_*(cTotRev+cTotRev+cTotRev)+(1-pASurgMort)*pAsepFail Rev1_*(1-pASurgMort)*pAsepFail Rev2_*(1-pASurgMort)*pAsepFail Rev3_*(cTotRev+cTotRev+cTotRev)) -> 38.92162545 | G109: =[1]!xPr(rAsepFail InitialTHA*_dT)*(pASurgMort*cTotRev+(1-pASurgMort)*pAsepFail Rev1_*pASurgMort*(cTotRev+cTotRev)+(1-pASurgMort)*pAsepFail Rev1_*(1-pASurgMort)*pAsepFail Rev2_*pASurgMort*(cTotRev+cTotRev+cTotRev)+(1-pASurgMort)*pAsepFair Rev1_*cTotRev+(1-pASurgMort)*pAsepFail Rev1_*(1-pASurgMort)*pAsepFair Rev2_*(cTotRev+cTotRev)+(1-pASurgMort)*pAsepFail Rev1_*(1-pASurgMort)*pAsepFail Rev2_*(1-pASurgMort)*pAsepFair Rev3_*(cTotRev+cTotRev+cTotRev)+(1-pASurgMort)*pAsepFail Rev1_*(1-pASurgMort)*pAsepFail Rev2_*(1-pASurgMort)*pAsepFail Rev3_*(cTotRev+cTotRev+cTotRev)) -> 38.92162545 | K109: =[1]!xPr(rAsepFail InitialTHA*_dT)*(pASurgMort*cTotRev+(1-pASurgMort)*pAsepFail Rev1_*pASurgMort*(cTotRev+cTotRev)+(1-pASurgMort)*pAsepFail Rev1_*(1-pASurgMort)*pAsepFail Rev2_*pASurgMort*(cTotRev+cTotRev+cTotRev)+(1-pASurgMort)*pAsepFair Rev1_*cTotRev+(1-pASurgMort)*pAsepFail Rev1_*(1-pASurgMort)*pAsepFair Rev2_*(cTotRev+cTotRev)+(1-pASurgMort)*pAsepFail Rev1_*(1-pASurgMort)*pAsepFail Rev2_*(1-pASurgMort)*pAsepFair Rev3_*(cTotRev+cTotRev+cTotRev)+(1-pASurgMort)*pAsepFail Rev1_*(1-pASurgMort)*pAsepFail Rev2_*(1-pASurgMort)*pAsepFail Rev3_*(cTotRev+cTotRev+cTotRev)) -> 38.92162545
D110: Aseptic Failure / Daily Living / THA / ACR III (aseptic) / Alive / Aseptic Revision 1 / 1 / 1 | H110: =[1]!xPr(rAsepFail AsepRev1*_dT)*(pASurgMort*cTotRev+(1-pASurgMort)*pAsepFail Rev2_*pASurgMort*(cTotRev+cTotRev)+(1-pASurgMort)*pAsepFair Rev2_*cTotRev+(1-pASurgMort)*pAsepFail Rev2_*(1-pASurgMort)*pAsepFair Rev3_*(cTotRev+cTotRev)+(1-pASurgMort)*pAsepFail Rev2_*(1-pASurgMort)*pAsepFail Rev3_*(cTotRev+cTotRev)) -> 151.04207
D111: Daily Living / Infection Failure / THA / ACR IV (septic history) / Alive / Aseptic Revision 1 / 1 / 1 | H111: =[1]!xPr(rInfecFail AsepRev1*_dT)*(pInfecMort*(cHospRev+cPhys+cRehab)+(1-pInfecMort)*pInfecFail*pInfecMort*((cHospRev+cPhys+cRehab)+(cHospRev+cPhys+cRehab))+(1-pInfecMort)*pInfecFair*(cHospRev+cPhys+cRehab)+(1-pInfecMort)*pInfecFail*(1-pInfecMort)*pInfecFair*((cHospRev+cPhys+cRehab)+(cHospRev+cPhys+cRehab))+(1-pInfecMort)*pInfecFail*(1-pInfecMort)*pInfecFail*((cHospRev+cPhys+cRehab)+(cHospRev+cPhys+cRehab))) -> 67.7783529
D112: Aseptic Failure / Daily Living / THA / ACR III (aseptic) / Alive / Aseptic Revision 2 / 2 / 2 | I112: =[1]!xPr(rAsepFail AsepRev2*_dT)*(pASurgMort*cTotRev+(1-pASurgMort)*pAsepFair Rev3_*cTotRev+(1-pASurgMort)*pAsepFail Rev3_*cTotRev) -> 139.6505826
D113: Daily Living / Infection Failure / THA / ACR IV (septic history) / Alive / Aseptic Revision 2 / 2 / 2 | I113: =[1]!xPr(rInfecFail AsepRev2*_dT)*(pInfecMort*(cHospRev+cPhys+cRehab)+(1-pInfecMort)*pInfecFair*(cHospRev+cPhys+cRehab)+(1-pInfecMort)*pInfecFail*(cHospRev+cPhys+cRehab)) -> 97.82869991
D114: Aseptic Failure / Daily Living / THA / ACR III (aseptic) / Alive / Aseptic Revision 3 / 3 / 3 | J114: =0 -> 0 | L114: =0 -> 0
D115: Daily Living / Infection Failure / THA / ACR IV (septic history) / Alive / Aseptic Revision 3 / 3 / 3 | J115: =0 -> 0 | L115: =0 -> 0 | O115: =0 -> 0
D116: Aseptic Failure / Daily Living / THA / ACR IV (septic history) / Alive / Aseptic Revision 1 / 1 / 3 | M116: =0 -> 0 | P116: =0 -> 0
D117: Daily Living / Infection Failure / THA / ACR IV (septic history) / Alive / Aseptic Revision 1 / 1 / 3 | M117: =0 -> 0 | P117: =0 -> 0
D118: Aseptic Failure / Daily Living / THA / ACR IV (septic history) / Alive / Aseptic Revision 2 / 2 / 3 | N118: =0 -> 0 | R118: =0 -> 0
D119: Daily Living / Infection Failure / THA / ACR IV (septic history) / Alive / Aseptic Revision 2 / 2 / 3 | N119: =0 -> 0 | R119: =0 -> 0
D120: Aseptic Failure / Daily Living / THA / ACR IV (septic history) / Alive / Aseptic Revision 3 / 3 / 3 | O120: =0 -> 0
D121: Aseptic Failure / Daily Living / THA / ACR IV (septic history) / Alive / Aseptic Revision 1 / 1 / 2 | Q121: =[1]!xPr(rAsepFail AsepRev1*_dT)*(pASurgMort*cTotRev+(1-pASurgMort)*pAsepFair Rev2_*cTotRev+(1-pASurgMort)*pAsepFail Rev2_*cTotRev) -> 111.7762984
D122: Daily Living / Infection Failure / THA / ACR IV (septic history) / Alive / Aseptic Revision 1 / 1 / 2 | Q122: =[1]!xPr(rInfecFail AsepRev1*_dT)*(pInfecMort*(cHospRev+cPhys+cRehab)+(1-pInfecMort)*pInfecFair*(cHospRev+cPhys+cRehab)+(1-pInfecMort)*pInfecFail*(cHospRev+cPhys+cRehab)) -> 55.94403731
D123: Aseptic Failure / Daily Living / Consrv Mgmt / ACR III (aseptic) / Alive / Aseptic Revision 1 / 1 / 1 | S123: =[1]!xPr(rAsepFail AsepRev1*_dT)*(pASurgMort*cTotRev+(1-pASurgMort)*pAsepFail Rev2_*pASurgMort*(cTotRev+cTotRev)+(1-pASurgMort)*pAsepFair Rev2_*cTotRev+(1-pASurgMort)*pAsepFail Rev2_*(1-pASurgMort)*pAsepFair Rev3_*(cTotRev+cTotRev)+(1-pASurgMort)*pAsepFail Rev2_*(1-pASurgMort)*pAsepFail Rev3_*(cTotRev+cTotRev)) -> 151.04207
D124: Daily Living / Infection Failure / Consrv Mgmt / ACR IV (septic history) / Alive / Aseptic Revision 1 / 1 / 1 | S124: =[1]!xPr(rInfecFail AsepRev1*_dT)*(pInfecMort*(cHospRev+cPhys+cRehab)+(1-pInfecMort)*pInfecFail*pInfecMort*((cHospRev+cPhys+cRehab)+(cHospRev+cPhys+cRehab))+(1-pInfecMort)*pInfecFair*(cHospRev+cPhys+cRehab)+(1-pInfecMort)*pInfecFail*(1-pInfecMort)*pInfecFair*((cHospRev+cPhys+cRehab)+(cHospRev+cPhys+cRehab))+(1-pInfecMort)*pInfecFail*(1-pInfecMort)*pInfecFail*((cHospRev+cPhys+cRehab)+(cHospRev+cPhys+cRehab))) -> 67.7783529 | Y124: =[1]!xPr(rInfecFail AsepRev1*_dT)*(pInfecMort*(cHospRev+cPhys+cRehab)+(1-pInfecMort)*pInfecFail*pInfecMort*((cHospRev+cPhys+cRehab)+(cHospRev+cPhys+cRehab))+(1-pInfecMort)*pInfecFair*(cHospRev+cPhys+cRehab)+(1-pInfecMort)*pInfecFail*(1-pInfecMort)*pInfecFair*((cHospRev+cPhys+cRehab)+(cHospRev+cPhys+cRehab))+(1-pInfecMort)*pInfecFail*(1-pInfecMort)*pInfecFail*((cHospRev+cPhys+cRehab)+(cHospRev+cPhys+cRehab))) -> 67.7783529
D125: Aseptic Failure / Daily Living / Consrv Mgmt / ACR III (aseptic) / Alive / Aseptic Revision 2 / 2 / 2 | T125: =[1]!xPr(rAsepFail AsepRev2*_dT)*(pASurgMort*cTotRev+(1-pASurgMort)*pAsepFair Rev3_*cTotRev+(1-pASurgMort)*pAsepFail Rev3_*cTotRev) -> 139.6505826
D126: Daily Living / Infection Failure / Consrv Mgmt / ACR IV (septic history) / Alive / Aseptic Revision 2 / 2 / 2 | T126: =[1]!xPr(rInfecFail AsepRev2*_dT)*(pInfecMort*(cHospRev+cPhys+cRehab)+(1-pInfecMort)*pInfecFair*(cHospRev+cPhys+cRehab)+(1-pInfecMort)*pInfecFail*(cHospRev+cPhys+cRehab)) -> 97.82869991 | Z126: =[1]!xPr(rInfecFail AsepRev2*_dT)*(pInfecMort*(cHospRev+cPhys+cRehab)+(1-pInfecMort)*pInfecFair*(cHospRev+cPhys+cRehab)+(1-pInfecMort)*pInfecFail*(cHospRev+cPhys+cRehab)) -> 97.82869991
D127: Aseptic Failure / Daily Living / Consrv Mgmt / ACR III (aseptic) / Alive / Aseptic Revision 3 / 3 / 3 | U127: =0 -> 0 | W127: =0 -> 0
D128: Daily Living / Infection Failure / Consrv Mgmt / ACR IV (septic history) / Alive / Aseptic Revision 3 / 3 / 3 | U128: =0 -> 0 | W128: =0 -> 0 | AA128: =0 -> 0 | AD128: =0 -> 0
D129: Aseptic Failure / Daily Living / Consrv Mgmt / ACR III (aseptic) / Alive / Initial THA / 0 / 0 | V129: =[1]!xPr(rAsepFail InitialTHA*_dT)*(pASurgMort*cTotRev+(1-pASurgMort)*pAsepFail Rev1_*pASurgMort*(cTotRev+cTotRev)+(1-pASurgMort)*pAsepFail Rev1_*(1-pASurgMort)*pAsepFail Rev2_*pASurgMort*(cTotRev+cTotRev+cTotRev)+(1-pASurgMort)*pAsepFair Rev1_*cTotRev+(1-pASurgMort)*pAsepFail Rev1_*(1-pASurgMort)*pAsepFair Rev2_*(cTotRev+cTotRev)+(1-pASurgMort)*pAsepFail Rev1_*(1-pASurgMort)*pAsepFail Rev2_*(1-pASurgMort)*pAsepFair Rev3_*(cTotRev+cTotRev+cTotRev)+(1-pASurgMort)*pAsepFail Rev1_*(1-pASurgMort)*pAsepFail Rev2_*(1-pASurgMort)*pAsepFail Rev3_*(cTotRev+cTotRev+cTotRev)) -> 38.92162545
D130: Daily Living / Daily Living / Consrv Mgmt / ACR IV (aseptic) / Alive / Initial THA / 0 / 0 | V130: =0 -> 0
D131: Daily Living / Daily Living / Consrv Mgmt / ACR IV (aseptic) / Alive / Aseptic Revision 3 / 3 / 3 | W131: =0 -> 0
D132: Aseptic Failure / Daily Living / Consrv Mgmt / ACR IV (aseptic) / Alive / Initial THA / 0 / 0 | X132: =[1]!xPr(rAsepFail InitialTHA*_dT)*(pASurgMort*cTotRev+(1-pASurgMort)*pAsepFail Rev1_*pASurgMort*(cTotRev+cTotRev)+(1-pASurgMort)*pAsepFail Rev1_*(1-pASurgMort)*pAsepFail Rev2_*pASurgMort*(cTotRev+cTotRev+cTotRev)+(1-pASurgMort)*pAsepFair Rev1_*cTotRev+(1-pASurgMort)*pAsepFail Rev1_*(1-pASurgMort)*pAsepFair Rev2_*(cTotRev+cTotRev)+(1-pASurgMort)*pAsepFail Rev1_*(1-pASurgMort)*pAsepFail Rev2_*(1-pASurgMort)*pAsepFair Rev3_*(cTotRev+cTotRev+cTotRev)+(1-pASurgMort)*pAsepFail Rev1_*(1-pASurgMort)*pAsepFail Rev2_*(1-pASurgMort)*pAsepFail Rev3_*(cTotRev+cTotRev+cTotRev)) -> 38.92162545
D133: Aseptic Failure / Daily Living / Consrv Mgmt / ACR IV (aseptic) / Alive / Aseptic Revision 1 / 1 / 1 | Y133: =[1]!xPr(rAsepFail AsepRev1*_dT)*(pASurgMort*cTotRev+(1-pASurgMort)*pAsepFail Rev2_*pASurgMort*(cTotRev+cTotRev)+(1-pASurgMort)*pAsepFair Rev2_*cTotRev+(1-pASurgMort)*pAsepFail Rev2_*(1-pASurgMort)*pAsepFair Rev3_*(cTotRev+cTotRev)+(1-pASurgMort)*pAsepFail Rev2_*(1-pASurgMort)*pAsepFail Rev3_*(cTotRev+cTotRev)) -> 151.04207
D134: Aseptic Failure / Daily Living / Consrv Mgmt / ACR IV (aseptic) / Alive / Aseptic Revision 2 / 2 / 2 | Z134: =[1]!xPr(rAsepFail AsepRev2*_dT)*(pASurgMort*cTotRev+(1-pASurgMort)*pAsepFair Rev3_*cTotRev+(1-pASurgMort)*pAsepFail Rev3_*cTotRev) -> 139.6505826
D135: Aseptic Failure / Daily Living / Consrv Mgmt / ACR IV (aseptic) / Alive / Aseptic Revision 3 / 3 / 3 | AA135: =0 -> 0
D136: Aseptic Failure / Daily Living / Consrv Mgmt / ACR IV (septic history) / Alive / Aseptic Revision 1 / 1 / 3 | AB136: =0 -> 0 | AE136: =0 -> 0
D137: Daily Living / Infection Failure / Consrv Mgmt / ACR IV (septic history) / Alive / Aseptic Revision 1 / 1 / 3 | AB137: =0 -> 0 | AE137: =0 -> 0
D138: Aseptic Failure / Daily Living / Consrv Mgmt / ACR IV (septic history) / Alive / Aseptic Revision 2 / 2 / 3 | AC138: =0 -> 0 | AG138: =0 -> 0
D139: Daily Living / Infection Failure / Consrv Mgmt / ACR IV (septic history) / Alive / Aseptic Revision 2 / 2 / 3 | AC139: =0 -> 0 | AG139: =0 -> 0
D140: Aseptic Failure / Daily Living / Consrv Mgmt / ACR IV (septic history) / Alive / Aseptic Revision 3 / 3 / 3 | AD140: =0 -> 0
D141: Aseptic Failure / Daily Living / Consrv Mgmt / ACR IV (septic history) / Alive / Aseptic Revision 1 / 1 / 2 | AF141: =[1]!xPr(rAsepFail AsepRev1*_dT)*(pASurgMort*cTotRev+(1-pASurgMort)*pAsepFair Rev2_*cTotRev+(1-pASurgMort)*pAsepFail Rev2_*cTotRev) -> 111.7762984
D142: Daily Living / Infection Failure / Consrv Mgmt / ACR IV (septic history) / Alive / Aseptic Revision 1 / 1 / 2 | AF142: =[1]!xPr(rInfecFail AsepRev1*_dT)*(pInfecMort*(cHospRev+cPhys+cRehab)+(1-pInfecMort)*pInfecFair*(cHospRev+cPhys+cRehab)+(1-pInfecMort)*pInfecFail*(cHospRev+cPhys+cRehab)) -> 55.94403731
D143: Terminal Node | E143: =dTHA*pSurgMort*(cHospInit+cPhys+cRehab) -> 0 | F143: =0 -> 0 | G143: =0 -> 0 | H143: =0 -> 0 | I143: =0 -> 0 | J143: =0 -> 0 | K143: =0 -> 0 | L143: =0 -> 0 | M143: =0 -> 0 | N143: =0 -> 0 | O143: =0 -> 0 | P143: =0 -> 0 | Q143: =0 -> 0 | R143: =0 -> 0 | S143: =0 -> 0 | T143: =0 -> 0 | U143: =0 -> 0 | V143: =0 -> 0 | W143: =0 -> 0 | X143: =0 -> 0 | Y143: =0 -> 0 | Z143: =0 -> 0 | AA143: =0 -> 0 | AB143: =0 -> 0 | AC143: =0 -> 0 | AD143: =0 -> 0 | AE143: =0 -> 0 | AF143: =0 -> 0 | AG143: =0 -> 0
D144: Incremental Cost Tolls: | E144: =IF(_t>_tF,0,_tR*SUM(E105:E143)) -> 0 | F144: =IF(_t>_tF,0,_tR*SUM(F105:F143)) -> 26.71785279 | G144: =IF(_t>_tF,0,_tR*SUM(G105:G143)) -> 7.735681209 | H144: =IF(_t>_tF,0,_tR*SUM(H105:H143)) -> 0.7163776211 | I144: =IF(_t>_tF,0,_tR*SUM(I105:I143)) -> 0.2077999279 | J144: =IF(_t>_tF,0,_tR*SUM(J105:J143)) -> 0 | K144: =IF(_t>_tF,0,_tR*SUM(K105:K143)) -> 1.904167682 | L144: =IF(_t>_tF,0,_tR*SUM(L105:L143)) -> 0 | M144: =IF(_t>_tF,0,_tR*SUM(M105:M143)) -> 0 | N144: =IF(_t>_tF,0,_tR*SUM(N105:N143)) -> 0 | O144: =IF(_t>_tF,0,_tR*SUM(O105:O143)) -> 0 | P144: =IF(_t>_tF,0,_tR*SUM(P105:P143)) -> 0 | Q144: =IF(_t>_tF,0,_tR*SUM(Q105:Q143)) -> 0.001710943336 | R144: =IF(_t>_tF,0,_tR*SUM(R105:R143)) -> 0 | S144: =IF(_t>_tF,0,_tR*SUM(S105:S143)) -> 0 | T144: =IF(_t>_tF,0,_tR*SUM(T105:T143)) -> 0 | U144: =IF(_t>_tF,0,_tR*SUM(U105:U143)) -> 0 | V144: =IF(_t>_tF,0,_tR*SUM(V105:V143)) -> 0 | W144: =IF(_t>_tF,0,_tR*SUM(W105:W143)) -> 0 | X144: =IF(_t>_tF,0,_tR*SUM(X105:X143)) -> 0 | Y144: =IF(_t>_tF,0,_tR*SUM(Y105:Y143)) -> 0 | Z144: =IF(_t>_tF,0,_tR*SUM(Z105:Z143)) -> 0 | AA144: =IF(_t>_tF,0,_tR*SUM(AA105:AA143)) -> 0 | AB144: =IF(_t>_tF,0,_tR*SUM(AB105:AB143)) -> 0 | AC144: =IF(_t>_tF,0,_tR*SUM(AC105:AC143)) -> 0 | AD144: =IF(_t>_tF,0,_tR*SUM(AD105:AD143)) -> 0 | AE144: =IF(_t>_tF,0,_tR*SUM(AE105:AE143)) -> 0 | AF144: =IF(_t>_tF,0,_tR*SUM(AF105:AF143)) -> 0 | AG144: =IF(_t>_tF,0,_tR*SUM(AG105:AG143)) -> 0
D145: Incremental Costs: | E145: =IF(_t>_tF,0,IF(_CP,0,_dT/2*(E102*E19+E103*E52))) -> 0 | F145: =IF(_t>_tF,0,IF(_CP,0,_dT/2*(F102*F19+F103*F52))) -> 0 | G145: =IF(_t>_tF,0,IF(_CP,0,_dT/2*(G102*G19+G103*G52))) -> 0 | H145: =IF(_t>_tF,0,IF(_CP,0,_dT/2*(H102*H19+H103*H52))) -> 0 | I145: =IF(_t>_tF,0,IF(_CP,0,_dT/2*(I102*I19+I103*I52))) -> 0 | J145: =IF(_t>_tF,0,IF(_CP,0,_dT/2*(J102*J19+J103*J52))) -> 0 | K145: =IF(_t>_tF,0,IF(_CP,0,_dT/2*(K102*K19+K103*K52))) -> 3.760278729 | L145: =IF(_t>_tF,0,IF(_CP,0,_dT/2*(L102*L19+L103*L52))) -> 0.00671319882 | M145: =IF(_t>_tF,0,IF(_CP,0,_dT/2*(M102*M19+M103*M52))) -> 0.002734889403 | N145: =IF(_t>_tF,0,IF(_CP,0,_dT/2*(N102*N19+N103*N52))) -> 0.00609688124 | O145: =IF(_t>_tF,0,IF(_CP,0,_dT/2*(O102*O19+O103*O52))) -> 0.02166900837 | P145: =IF(_t>_tF,0,IF(_CP,0,_dT/2*(P102*P19+P103*P52))) -> 0.000208393678 | Q145: =IF(_t>_tF,0,IF(_CP,0,_dT/2*(Q102*Q19+Q103*Q52))) -> 0.0009764954422 | R145: =IF(_t>_tF,0,IF(_CP,0,_dT/2*(R102*R19+R103*R52))) -> 0.0004554532956 | S145: =IF(_t>_tF,0,IF(_CP,0,_dT/2*(S102*S19+S103*S52))) -> 0 | T145: =IF(_t>_tF,0,IF(_CP,0,_dT/2*(T102*T19+T103*T52))) -> 0 | U145: =IF(_t>_tF,0,IF(_CP,0,_dT/2*(U102*U19+U103*U52))) -> 0 | V145: =IF(_t>_tF,0,IF(_CP,0,_dT/2*(V102*V19+V103*V52))) -> 0 | W145: =IF(_t>_tF,0,IF(_CP,0,_dT/2*(W102*W19+W103*W52))) -> 0 | X145: =IF(_t>_tF,0,IF(_CP,0,_dT/2*(X102*X19+X103*X52))) -> 0 | Y145: =IF(_t>_tF,0,IF(_CP,0,_dT/2*(Y102*Y19+Y103*Y52))) -> 0 | Z145: =IF(_t>_tF,0,IF(_CP,0,_dT/2*(Z102*Z19+Z103*Z52))) -> 0 | AA145: =IF(_t>_tF,0,IF(_CP,0,_dT/2*(AA102*AA19+AA103*AA52))) -> 0 | AB145: =IF(_t>_tF,0,IF(_CP,0,_dT/2*(AB102*AB19+AB103*AB52))) -> 0 | AC145: =IF(_t>_tF,0,IF(_CP,0,_dT/2*(AC102*AC19+AC103*AC52))) -> 0 | AD145: =IF(_t>_tF,0,IF(_CP,0,_dT/2*(AD102*AD19+AD103*AD52))) -> 0 | AE145: =IF(_t>_tF,0,IF(_CP,0,_dT/2*(AE102*AE19+AE103*AE52))) -> 0 | AF145: =IF(_t>_tF,0,IF(_CP,0,_dT/2*(AF102*AF19+AF103*AF52))) -> 0 | AG145: =IF(_t>_tF,0,IF(_CP,0,_dT/2*(AG102*AG19+AG103*AG52))) -> 0
D146: Incremental Total: | E146: =E145+E144 -> 0 | F146: =F145+F144 -> 26.71785279 | G146: =G145+G144 -> 7.735681209 | H146: =H145+H144 -> 0.7163776211 | I146: =I145+I144 -> 0.2077999279 | J146: =J145+J144 -> 0 | K146: =K145+K144 -> 5.664446412 | L146: =L145+L144 -> 0.00671319882 | M146: =M145+M144 -> 0.002734889403 | N146: =N145+N144 -> 0.00609688124 | O146: =O145+O144 -> 0.02166900837 | P146: =P145+P144 -> 0.000208393678 | Q146: =Q145+Q144 -> 0.002687438778 | R146: =R145+R144 -> 0.0004554532956 | S146: =S145+S144 -> 0 | T146: =T145+T144 -> 0 | U146: =U145+U144 -> 0 | V146: =V145+V144 -> 0 | W146: =W145+W144 -> 0 | X146: =X145+X144 -> 0 | Y146: =Y145+Y144 -> 0 | Z146: =Z145+Z144 -> 0 | AA146: =AA145+AA144 -> 0 | AB146: =AB145+AB144 -> 0 | AC146: =AC145+AC144 -> 0 | AD146: =AD145+AD144 -> 0 | AE146: =AE145+AE144 -> 0 | AF146: =AF145+AF144 -> 0 | AG146: =AG145+AG144 -> 0
D147: Cum Discounted Costs: | E147: =IF(_R,E146,IF(_t>=_tF,E147,E147+E146*EXP(-_dR*_t))) -> 25000 | F147: =IF(_R,F146,IF(_t>=_tF,F147,F147+F146*EXP(-_dR*_t))) -> 164.4434358 | G147: =IF(_R,G146,IF(_t>=_tF,G147,G147+G146*EXP(-_dR*_t))) -> 47.6116852 | H147: =IF(_R,H146,IF(_t>=_tF,H147,H147+H146*EXP(-_dR*_t))) -> 2.169275957 | I147: =IF(_R,I146,IF(_t>=_tF,I147,I147+I146*EXP(-_dR*_t))) -> 0.6261909804 | J147: =IF(_R,J146,IF(_t>=_tF,J147,J147+J146*EXP(-_dR*_t))) -> 0 | K147: =IF(_R,K146,IF(_t>=_tF,K147,K147+K146*EXP(-_dR*_t))) -> 34.86361861 | L147: =IF(_R,L146,IF(_t>=_tF,L147,L147+L146*EXP(-_dR*_t))) -> 0.0210752162 | M147: =IF(_R,M146,IF(_t>=_tF,M147,M147+M146*EXP(-_dR*_t))) -> 0.005961902964 | N147: =IF(_R,N146,IF(_t>=_tF,N147,N147+N146*EXP(-_dR*_t))) -> 0.01321697925 | O147: =IF(_R,O146,IF(_t>=_tF,O147,O147+O146*EXP(-_dR*_t))) -> 0.04736436981 | P147: =IF(_R,P146,IF(_t>=_tF,P147,P147+P146*EXP(-_dR*_t))) -> 0.0004579948171 | Q147: =IF(_R,Q146,IF(_t>=_tF,Q147,Q147+Q146*EXP(-_dR*_t))) -> 0.005568067683 | R147: =IF(_R,R146,IF(_t>=_tF,R147,R147+R146*EXP(-_dR*_t))) -> 0.001000116693 | S147: =IF(_R,S146,IF(_t>=_tF,S147,S147+S146*EXP(-_dR*_t))) -> 0 | T147: =IF(_R,T146,IF(_t>=_tF,T147,T147+T146*EXP(-_dR*_t))) -> 0 | U147: =IF(_R,U146,IF(_t>=_tF,U147,U147+U146*EXP(-_dR*_t))) -> 0 | V147: =IF(_R,V146,IF(_t>=_tF,V147,V147+V146*EXP(-_dR*_t))) -> 0 | W147: =IF(_R,W146,IF(_t>=_tF,W147,W147+W146*EXP(-_dR*_t))) -> 0 | X147: =IF(_R,X146,IF(_t>=_tF,X147,X147+X146*EXP(-_dR*_t))) -> 0 | Y147: =IF(_R,Y146,IF(_t>=_tF,Y147,Y147+Y146*EXP(-_dR*_t))) -> 0 | Z147: =IF(_R,Z146,IF(_t>=_tF,Z147,Z147+Z146*EXP(-_dR*_t))) -> 0 | AA147: =IF(_R,AA146,IF(_t>=_tF,AA147,AA147+AA146*EXP(-_dR*_t))) -> 0 | AB147: =IF(_R,AB146,IF(_t>=_tF,AB147,AB147+AB146*EXP(-_dR*_t))) -> 0 | AC147: =IF(_R,AC146,IF(_t>=_tF,AC147,AC147+AC146*EXP(-_dR*_t))) -> 0 | AD147: =IF(_R,AD146,IF(_t>=_tF,AD147,AD147+AD146*EXP(-_dR*_t))) -> 0 | AE147: =IF(_R,AE146,IF(_t>=_tF,AE147,AE147+AE146*EXP(-_dR*_t))) -> 0 | AF147: =IF(_R,AF146,IF(_t>=_tF,AF147,AF147+AF146*EXP(-_dR*_t))) -> 0 | AG147: =IF(_R,AG146,IF(_t>=_tF,AG147,AG147+AG146*EXP(-_dR*_t))) -> 0
D148: Overall Cum Costs = | E148: =SUM(E147:AG147) -> 25249.80885

Sheet Aseptic_Fail
C15: Last Surgery | D15: rAsepFail | E15: rInfecFail
C16: InitialTHA | D16: 0.01 | E16: 0.002
C17: AsepRev1 | D17: 0.04 | E17: 0.02
C18: AsepRev2 | D18: 0.05 | E18: 0.035 | H18: Current Surg | I18: pAsepFair | J18: pAsepFail | K18: CtFair | L18: CtFail | O18: pASurgMort = | P18: 0.012 | R18: Costs
C19: AsepRev3 | D19: 0.1 | E19: 0.05 | H19: Rev1 | I19: =K19/SUM($K19:$L19) -> 0.7073170732 | J19: =L19/SUM($K19:$L19) -> 0.2926829268 | K19: 116 | L19: 48 | R19: cHospInit | S19: 17000 | T19: Initial THA
C20: InfecRev1 | D20: 0.04 | E20: 0.02 | H20: Rev2 | I20: =K20/SUM($K20:$L20) -> 0.6444444444 | J20: =L20/SUM($K20:$L20) -> 0.3555555556 | K20: 29 | L20: 16
C21: InfecRev2 | D21: 0.05 | E21: 0.035 | H21: Rev3 | I21: 0.8571428571 | J21: 0.1428571429 | K21: 6 | L21: 1 | R21: cHospRev | S21: 20000 | T21: per revision
C22: InfecRev3 | D22: 0.1 | E22: 0.05 | R22: cPhys | S22: 5000 | T22: per revision
R23: cRehab | S23: 3000 | T23: per revision
R24: cTotRev | S24: =SUM(S21:S23) -> 28000 | T24: per revision

Sheet Infection_Fail
D17: pInfecMort = | E17: =G17/F17 -> 0.01923076923 | F17: 104 | G17: 2
D19: pInfecFair | E19: pInfecFail | F19: CtFair | G19: CtFail
D20: =F20/SUM($F$20:$G$20) -> 0.7843137255 | E20: =G20/SUM($F$20:$G$20) -> 0.2156862745 | F20: 80 | G20: 22 | K20: =rInfecFail InfecRev1 -> 0.02

Sheet THA_Decision
D3: dTHA = | E3: 1
M6: dTHA | N6: QALY | O6: Cost
M7: =dTHA -> 1 | N7: =_CumQ -> 0.5323321799 | O7: =_CumC -> 25249.80885
M8: 1 | N8: 5.131124937 | O8: 28086.01442
M9: 0 | N9: 2.688814162 | O9: 31769.879
M11: Incremental | N11: =N8-N9 -> 2.442310775 | O11: =O8-O9 -> -3683.864582 | P11: =IF(O11>0,O11/N11,"-") -> -
M13: Female age 60 | N13: 5.941036542 | O13: -86070.57074 | P13: -
M14: Male age 87 | N14: 2.442310775 | O14: -3683.864582 | P14: -

Sheet ACR_Status
T5: pSuccess = | U5: =V5/$V$8 -> 0.7348608838 | V5: 449
T6: pFair = | U6: =V6/$V$8 -> 0.2127659574 | V6: 130
T7: pFailure = | U7: 0.05237315876 | V7: 32
V8: =SUM(V5:V7) -> 611
T9: pSurgMort = | U9: =1-SUM(U5:U7) -> 0
T11: qI = | U11: 1
T12: qII = | U12: 0.8
T13: qIII = | U13: 0.5
T14: qIV = | U14: 0.3
T16: rNatural = | U16: =X16/W16 -> 0.03296703297 | V16: ="/yr" -> /yr | W16: 910 | X16: 30
T17: (30 progressions in 910 patient-years)
T19: cMed | U19: 775 | V19: ="/yr for ACR III,IV" -> /yr for ACR III,IV
T20: cCustodial | U20: 35000 | V20: ="/yr for ACR IV" -> /yr for ACR IV

Sheet Mortality
D2: Gender = | E2: Male
D3: Age = | E3: 87

Sheet Dependency Data (hidden)
A1: Entry Count | B1: 22
A2: Next Available ID | B2: 25
A4: ID | B4: 1
A5: IfFactorID | B5: 7
A6: StateID | B6: 19 | C6: 21 | D6: 20
A7: ThenD | B7: rAseptic Initial_THA | C7: ID 2 | D7: ID 3
A9: ID | B9: 2
A10: IfFactorID | B10: **Deleted**
A11: StateID
A12: ThenD | B12: rAseptic Asceptic_1 | C12: rAseptic Asceptic_2 | D12: rAseptic Asceptic_3 | E12: 0
A14: ID | B14: 3
A15: IfFactorID | B15: **Deleted**
A16: StateID
A17: ThenD | B17: rAsceptic Infect_1 | C17: rAsceptic Infect_2 | D17: rAsceptic Infect_3 | E17: 0
A19: ID | B19: 4
A20: IfFactorID | B20: 8
A21: StateID | B21: 22 | C21: 25 | D21: 24 | E21: 23
A22: ThenD | B22: 0 | C22: 0 | D22: 0 | E22: 1
A24: ID | B24: 5
A25: IfFactorID | B25: 8
A26: StateID | B26: 22 | C26: 25 | D26: 24 | E26: 23
A27: ThenD | B27: 1 | C27: 1 | D27: 1 | E27: 0
A29: ID | B29: 6
A30: IfFactorID | B30: **Deleted**
A31: StateID
A32: ThenD | B32: pASucc A_Rev_1 | C32: pASucc A_Rev_2 | D32: pASucc A_Rev_3 | E32: 0
A34: ID | B34: 7
A35: IfFactorID | B35: **Deleted**
A36: StateID
A37: ThenD | B37: pAFail A_Rev_1 | C37: pAFail A_Rev_2 | D37: pAFail A_Rev_3 | E37: 0
A39: ID | B39: 8
A40: IfFactorID | B40: **Deleted**
A41: StateID
A42: ThenD | B42: pAMort A_Rev_1 | C42: pAMort A_Rev_2 | D42: pAMort A_Rev_3 | E42: 0
A44: ID | B44: 9
A45: IfFactorID | B45: 7
A46: StateID | B46: 19 | C46: 21 | D46: 20
A47: ThenD | B47: rInfection Initial_THA | C47: ID 10 | D47: ID 11
A49: ID | B49: 10
A50: IfFactorID | B50: **Deleted**
A51: StateID
A52: ThenD | B52: rInfection Aseptic_1 | C52: rInfection Aseptic_2 | D52: rInfection Aseptic_3 | E52: 0 | F52: 0
A54: ID | B54: 11
A55: IfFactorID | B55: **Deleted**
A56: StateID
A57: ThenD | B57: rInfection Infect_1 | C57: rInfection Infect_2 | D57: rInfection Infect_3 | E57: 0
A59: ID | B59: 12
A60: IfFactorID | B60: 8
A61: StateID | B61: 22 | C61: 25 | D61: 24 | E61: 23
A62: ThenD | B62: 0 | C62: 0 | D62: 0 | E62: 1
A64: ID | B64: 13
A65: IfFactorID | B65: 8
A66: StateID | B66: 22 | C66: 25 | D66: 24 | E66: 23
A67: ThenD | B67: 1 | C67: 1 | D67: 1 | E67: 0
A69: ID | B69: 14
A70: IfFactorID | B70: 1
A71: StateID | B71: 3 | C71: 2
A72: ThenD | B72: rNatural | C72: 0
A74: ID | B74: 15
A75: IfFactorID | B75: 7
A76: StateID | B76: 21 | C76: 50 | D76: 51 | E76: 20 | F76: 48 | G76: 49 | H76: 19
A77: ThenD | B77: rAsepFail AsepRev1 | C77: rAsepFail AsepRev2 | D77: rAsepFail AsepRev3 | E77: rAsepFail InfecRev1 | F77: rAsepFail InfecRev2 | G77: rAsepFail InfecRev3 | H77: rAsepFail InitialTHA
A79: ID | B79: 17
A80: IfFactorID | B80: 8
A81: StateID | B81: 23 | C81: (other)
A82: ThenD | B82: 1 | C82: 0
A84: ID | B84: 19
A85: IfFactorID | B85: 12
A86: StateID | B86: 57 | C86: 56 | D86: 55 | E86: (other)
A87: ThenD | B87: pAsepFair Rev1_ | C87: pAsepFair Rev2_ | D87: pAsepFair Rev3_ | E87: 0
A89: ID | B89: 20
A90: IfFactorID | B90: 12
A91: StateID | B91: 57 | C91: 56 | D91: 55 | E91: (other)
A92: ThenD | B92: pAsepFail Rev1_ | C92: pAsepFail Rev2_ | D92: pAsepFail Rev3_ | E92: 0
A94: ID | B94: 21
A95: IfFactorID | B95: 7
A96: StateID | B96: 21 | C96: 50 | D96: 51 | E96: 20 | F96: 48 | G96: 49 | H96: 19
A97: ThenD | B97: rInfecFail AsepRev1 | C97: rInfecFail AsepRev2 | D97: rInfecFail AsepRev3 | E97: rInfecFail InfecRev1 | F97: rInfecFail InfecRev2 | G97: rInfecFail InfecRev3 | H97: 0
A99: ID | B99: 22
A100: IfFactorID | B100: 8
A101: StateID | B101: 23 | C101: (other)
A102: ThenD | B102: 1 | C102: 0
A104: ID | B104: 23
A105: IfFactorID | B105: 8
A106: StateID | B106: 23 | C106: (other)
A107: ThenD | B107: 0 | C107: 1
A109: ID | B109: 24
A110: IfFactorID | B110: 8
A111: StateID | B111: 23 | C111: (other)
A112: ThenD | B112: 0 | C112: 1

Sheet Last_Surg

Sheet Aseptic_Ct

Sheet Revision_Ct

Sheet Sheet1
